Cogmind - Beta 9.3 @@@ ROGUE MODE // 2020.01.03 @ 17:54:15 // Winter2019/RPGLIKE Player: badjay Result: Escaped! Performance ------------- Evolutions (9) 4500 Regions Visited (32) 6400 Robots Destroyed (598) 2990 Value Destroyed (31679) 31679 Prototype IDs (158) 3160 Alien Tech Used (10) 2000 Bonus (26121) 26121 TOTAL SCORE: 76850 Bonus ------- Triggered Max Security 2000 High Alert Combat Kills 8025 Follower Combat Kills 3232 Network Hubs Disabled 400 Met Data Miner 300 Met Warlord at Base 500 MAIN.C Attacked Warlord 500 Warlord Defense Kill 134 Built Enhanced Grunts 300 A7 Reached Mainframe 300 Met Warlord at Research 2000 Scanned by Researcher 500 Met Sigix 2000 Activated Exoskeleton 3000 Recovered Sigix Corpse 1000 Win 3000 Friendly Fire -1070 Cogmind --------- Core Integrity 236/900 Matter 290/300 Energy 585/600 System Corruption 0% Temperature Cool (2) Movement Flying (17) Location To Epsilon Eridani Parts ------- > --- POWER (2) -------- Cooled Fission Core Cooled Fission Core > --- PROPULSION (2) --- Experimental Q-thruster Experimental Q-thruster > --- UTILITY (13) ----- Experimental Coolant Injector Long-range Terrain Scanner Experimental Targeting Computer Experimental Target Analyzer Advanced Core Analyzer Advanced Armor Integrity Analyzer Precision Energy Filter Advanced Particle Charger Advanced Weapon Cycler Advanced Reaction Control System Advanced Phase Shifter Advanced Shield Generator System Mapper > --- WEAPON (4) ------- Improved Arc Projector Enhanced Quantum Rifle Enhanced Quantum Rifle Hypervelocity Railgun > --- INVENTORY (3) ---- Improved System Restoration Module Enhanced Force Lance Sigix Corpse Peak State ------------ > --- POWER ------------ Cooled Fission Core Cooled Fission Core > --- PROPULSION ------- Cooled Field Propulsion Drive Cooled Impulse Thruster > --- UTILITY ---------- Experimental Coolant Injector Long-range Terrain Scanner Experimental Targeting Computer Advanced Target Analyzer Advanced Core Analyzer Advanced Armor Integrity Analyzer Advanced Particle Charger Advanced Weapon Cycler Advanced Reaction Control System Advanced Phase Shifter Advanced Shield Generator System Mapper > --- WEAPON ----------- Potential Cannon Sigix Broadsword > --- INVENTORY -------- Improved System Restoration Module Heavy Dispersion Rifle Vortex Cannon [Rating: 170] Favorites ----------- Power Cooled Fission Core Engine Cooled Deuterium Engine Power Core Cooled Fission Core Reactor Compact Particle Reactor Propulsion Experimental Cesium-ion Thruster Flight Unit Experimental Cesium-ion Thruster Utility Advanced Terrain Scanner Device Advanced Terrain Scanner Processor Experimental Targeting Computer Hackware System Mapper Artifact Matter Drive Weapon Cooled Plasma Cannon Energy Gun Force Rifle Energy Cannon Cooled Plasma Cannon Ballistic Gun Hypervelocity Railgun Ballistic Cannon Enhanced Gauss Cannon Launcher Sigix Terminator Slashing Weapon Sigix Broadsword Piercing Weapon Plasma Lance Build | -11 -10 -10 -10 -9 -8 -7 -7 -7 -6 -6 -6 -6 -6 -5 -5 -5 -5 -5 -5 -5 -5 -4 -4 -4 -4 -3 -3 -3 -2 -2 -2 -1 ------- Run | Scr Mat Min Exi Min Mat Fac Low Dat Pro Fac Low Low Zio Pro Fac Was Fac Ext Cet Arc Hub Fac Upp Upp War Pro Res Tes Res Qua Sec Acc Slots Evolved 17 | . 1 . . . 4 1 . . 1 3 . . 1 2 1 . . . . . . . . 1 . . . 1 1 . . . Power 1 | . . . . . . 1 . . . . . . . . . . . . . . . . . . . . . . . . . . Propulsion 1 | . . . . . 1 . . . . . . . . . . . . . . . . . . . . . . . . . . . Utility 12 | . 1 . . . 1 . . . 1 3 . . . 2 1 . . . . . . . . 1 . . . 1 1 . . . Weapon 3 | . . . . . 2 . . . . . . . 1 . . . . . . . . . . . . . . . . . . . Parts Attached 257 | . 6 . . 2 22 11 . . 1 22 . 1 1 4 9 1 8 3 5 . 2 11 1 2 19 3 21 27 7 34 16 18 Power 20 | . 1 . . . 5 3 . . . 2 . 1 . . . . 3 . 1 . . 2 . . . . . . . . 2 . Engine 6 | . 1 . . . 2 . . . . 1 . . . . . . 2 . . . . . . . . . . . . . . . Core 12 | . . . . . 3 3 . . . 1 . 1 . . . . 1 . . . . 2 . . . . . . . . 1 . Reactor 2 | . . . . . . . . . . . . . . . . . . . 1 . . . . . . . . . . . 1 . Propulsion 18 | . 1 . . . 2 2 . . . 3 . . . . . . . . . . . 2 . . 1 . 1 . . . 3 3 Treads . | . . . . . . . . . . . . . . . . . . . . . . . . . . . . . . . . . Leg . | . . . . . . . . . . . . . . . . . . . . . . . . . . . . . . . . . Wheel . | . . . . . . . . . . . . . . . . . . . . . . . . . . . . . . . . . Hover . | . . . . . . . . . . . . . . . . . . . . . . . . . . . . . . . . . Flight 18 | . 1 . . . 2 2 . . . 3 . . . . . . . . . . . 2 . . 1 . 1 . . . 3 3 Utility 118 | . . . . 2 2 3 . . 1 11 . . . 4 7 1 2 3 2 . 2 5 1 . 16 3 13 8 4 13 8 7 Device 95 | . . . . . 1 2 . . . 8 . . . 4 4 1 2 3 2 . 1 5 . . 14 3 11 7 2 12 7 6 Storage . | . . . . . . . . . . . . . . . . . . . . . . . . . . . . . . . . . Processor 20 | . . . . 2 1 1 . . 1 3 . . . . 2 . . . . . 1 . 1 . 1 . 2 1 2 . 1 1 Hackware 2 | . . . . . . . . . . . . . . . 1 . . . . . . . . . 1 . . . . . . . Protection . | . . . . . . . . . . . . . . . . . . . . . . . . . . . . . . . . . Artifact 1 | . . . . . . . . . . . . . . . . . . . . . . . . . . . . . . 1 . . Weapon 101 | . 4 . . . 13 3 . . . 6 . . 1 . 2 . 3 . 2 . . 2 . 2 2 . 7 19 3 21 3 8 Energy Gun 43 | . 4 . . . 6 . . . . 3 . . 1 . 1 . . . 1 . . 1 . 1 1 . 3 8 2 3 3 5 Energy Cannon 29 | . . . . . 1 2 . . . 3 . . . . . . 3 . . . . 1 . . 1 . 2 5 . 11 . . Ballistic Gun 25 | . . . . . 6 1 . . . . . . . . . . . . 1 . . . . 1 . . 2 6 . 5 . 3 Ballistic Cannon 1 | . . . . . . . . . . . . . . . 1 . . . . . . . . . . . . . . . . . Launcher 1 | . . . . . . . . . . . . . . . . . . . . . . . . . . . . . . 1 . . Special Weapon . | . . . . . . . . . . . . . . . . . . . . . . . . . . . . . . . . . Impact Weapon . | . . . . . . . . . . . . . . . . . . . . . . . . . . . . . . . . . Slashing Weapon 1 | . . . . . . . . . . . . . . . . . . . . . . . . . . . . . . 1 . . Piercing Weapon 1 | . . . . . . . . . . . . . . . . . . . . . . . . . . . . . 1 . . . Special Melee Weapon . | . . . . . . . . . . . . . . . . . . . . . . . . . . . . . . . . . Unidentified Prototypes 58 | . . . . . 4 2 . . . 3 . . 1 . 2 . 1 . 3 . . 3 . . 6 . 6 8 2 8 8 1 Parts Lost 2 | . 1 . . . . . . . . . . . . . . . . . . . . . . . . . . 1 . . . . Power . | . . . . . . . . . . . . . . . . . . . . . . . . . . . . . . . . . Propulsion . | . . . . . . . . . . . . . . . . . . . . . . . . . . . . . . . . . Utility . | . . . . . . . . . . . . . . . . . . . . . . . . . . . . . . . . . Weapon 2 | . 1 . . . . . . . . . . . . . . . . . . . . . . . . . . 1 . . . . Highest Loss Streak 1 | . 1 . . . . . . . . . . . . . . . . . . . . . . . . . . 1 . . . . Average Slot Usage (%) 92 | . 46 60 60 74 93 99 100 100 100 99 100 100 81 81 82 83 86 94 94 94 94 94 100 96 97 100 99 95 89 89 99 99 Engine 1 | . 12 20 20 20 1 . . . . . . . . . . . . 5 5 5 5 2 . . . . . . . . . . Core 9 | . . . . . 11 11 20 20 18 14 14 14 13 11 11 11 10 5 1 . . 6 11 10 10 10 10 10 9 9 9 9 Flight 12 | . 16 20 20 20 22 21 20 20 18 14 14 14 13 11 11 11 11 11 11 11 11 11 11 10 10 10 10 10 9 9 8 8 Device 26 | . . . . . 5 20 20 20 18 24 28 28 26 31 29 27 27 27 27 27 27 27 27 26 28 31 31 34 33 35 37 38 Processor 19 | . . . . 14 25 12 10 10 15 21 21 21 20 17 22 22 22 22 22 22 22 22 22 21 21 21 21 20 20 19 19 19 Hackware 2 | . . . . . . . . . . . . . . . 1 5 5 5 5 5 5 5 5 5 5 5 5 5 4 4 4 4 Energy Gun 7 | . 17 20 20 20 7 19 10 10 9 14 21 21 6 5 5 5 3 . . . . . 5 5 5 5 . 4 . 3 12 13 Energy Cannon 6 | . . . . . . 1 10 10 9 5 . . . . . . 4 16 16 16 16 16 16 15 15 15 15 6 4 3 . . Ballistic Gun 3 | . . . . . 18 10 10 10 9 1 . . . . . . . . . . . . . . . . 4 4 4 2 4 4 Naked Turns 56 | . 56 . . . . . . . . . . . . . . . . . . . . . . . . . . . . . . . Heaviest Build 85 | . 8 8 8 8 14 26 26 26 26 39 33 33 38 43 43 40 50 52 56 56 57 69 69 69 70 74 76 78 85 82 78 76 Greatest Support 94 | 3 14 14 14 14 22 31 31 31 31 44 44 44 44 44 44 44 54 54 59 59 59 69 69 69 71 77 78 89 89 94 94 83 Greatest Overweight (x) 1 | . . . . . . 1 . . . 1 . . . 1 1 . 1 . . . . . . . . . . . 1 1 1 1 Average Overweight (x) . | . . . . . . . . . . . . . . . . . . . . . . . . . . . . . . . . . Largest Inventory Capacity 3 | . . . . . 1 1 1 1 1 3 3 3 3 3 3 3 3 3 3 3 3 3 3 3 3 3 3 3 3 3 3 3 Average Capacity 2 | . . . . . . 1 1 1 1 2 3 3 3 3 3 3 3 3 3 3 3 3 3 3 3 3 3 3 3 3 3 3 Most Carried 3 | . . . . . 1 1 1 1 1 3 3 3 3 3 3 3 3 3 3 3 3 3 3 3 3 3 3 3 3 3 3 3 Average Carried 2 | . . . . . . . 1 1 1 1 3 3 3 2 2 3 3 3 3 3 3 2 2 3 2 3 3 2 2 2 2 2 Final Capacity 3 | . . . . . 1 1 1 1 1 3 3 3 3 3 3 3 3 3 3 3 3 3 3 3 3 3 3 3 3 3 3 3 Final Carried 3 | . . . . . . 1 1 1 1 3 3 3 3 3 3 3 3 3 3 3 3 3 3 3 3 3 3 3 3 3 1 3 Class Distribution -------------------- 79% | Hacker-Scout 8% | Hacker-Mutant 4% | Hacker-Sprinter 4% | Hacker-Gunner Dominant Class ---------------- Hacker-Mutant | -10/Materials Hacker-Mutant | -10/Mines Hacker-Mutant | -10/Exiles Hacker-Mutant | -9/Mines Hacker-Scout | -8/Materials Hacker-Scout | -7/Factory Hacker-Scout | -7/Lower Caves Hacker-Scout | -7/Data Miner Hacker-Scout | -6/Proximity Caves Hacker-Scout | -6/Factory Hacker-Scout | -6/Lower Caves Hacker-Scout | -6/Lower Caves Hacker-Scout | -6/Zion Hacker-Scout | -5/Proximity Caves Hacker-Scout | -5/Factory Hacker-Scout | -5/Waste Hacker-Scout | -5/Factory Hacker-Sprinter | -5/Extension Commander-Scout | -5/Cetus Hacker-Scout | -5/Archives Hacker-Sprinter | -5/Hub_04(d) Hacker-Scout | -4/Factory Hacker-Scout | -4/Upper Caves Hacker-Scout | -4/Upper Caves Hacker-Scout | -4/Warlord Hacker-Scout | -3/Proximity Caves Hacker-Scout | -3/Research Hacker-Scout | -3/Testing Hacker-Scout | -2/Research Hacker-Scout | -2/Quarantine Hacker-Scout | -2/Section 7 Hacker-Scout | -1/Access Resources | -11 -10 -10 -10 -9 -8 -7 -7 -7 -6 -6 -6 -6 -6 -5 -5 -5 -5 -5 -5 -5 -5 -4 -4 -4 -4 -3 -3 -3 -2 -2 -2 -1 ----------- Run | Scr Mat Min Exi Min Mat Fac Low Dat Pro Fac Low Low Zio Pro Fac Was Fac Ext Cet Arc Hub Fac Upp Upp War Pro Res Tes Res Qua Sec Acc Matter Collected 6724 | 200 55 . . . 825 251 . . 127 316 . 10 10 40 40 . 171 38 50 . 19 110 20 20 190 30 763 641 495 756 1095 452 Remotely . | . . . . . . . . . . . . . . . . . . . . . . . . . . . . . . . . . Salvage Created 34119 | . 333 142 . 100 1569 611 . . 350 2915 105 416 254 999 1752 . 1717 1018 415 105 1178 1817 787 608 68 2162 3503 2542 2037 861 4055 1700 Parts 1409 | . 36 6 . 4 94 35 . . 13 117 16 18 2 40 66 . 43 39 22 4 45 65 33 33 1 78 116 123 86 33 168 73 Haulers Intercepted 47 | . 2 . . . 5 1 . . . 7 . . . . 1 . 5 . . . 2 2 . . . . 8 2 1 2 3 6 Recyclers Shooed 6 | . . . . . 1 . . . . . . . . . . . . . . . . . . . . . 3 . 1 . . 1 Parts Field Recycled . | . . . . . . . . . . . . . . . . . . . . . . . . . . . . . . . . . Retrieved Matter . | . . . . . . . . . . . . . . . . . . . . . . . . . . . . . . . . . Parts Self-Destructed 265 | . . . . . . . . . 21 . 16 17 2 41 . . . . . . . . 33 32 22 81 . . . . . . Prevented 13 | . . . . . . . . . . . . . . 1 . . . . . . . . . . 12 . . . . . . . Kills | -11 -10 -10 -10 -9 -8 -7 -7 -7 -6 -6 -6 -6 -6 -5 -5 -5 -5 -5 -5 -5 -5 -4 -4 -4 -4 -3 -3 -3 -2 -2 -2 -1 ------- Run | Scr Mat Min Exi Min Mat Fac Low Dat Pro Fac Low Low Zio Pro Fac Was Fac Ext Cet Arc Hub Fac Upp Upp War Pro Res Tes Res Qua Sec Acc Combat Hostiles Destroyed 470 | . 14 2 . 1 33 10 . . 7 29 2 6 . 20 31 . 15 17 9 2 16 21 20 11 1 33 33 29 26 14 53 15 Guns 273 | . 14 2 . 1 29 6 . . 5 25 2 6 . 19 27 . 11 . . . . . 2 1 . 2 13 15 17 13 48 15 Cannons 163 | . . . . . 1 4 . . 2 3 . . . . . . 4 15 7 2 15 19 18 8 . 31 19 12 3 . . . AOE 14 | . . . . . 3 . . . . 1 . . . . . . . . . . . . . . . . . 1 6 1 2 . Classes Destroyed 24 | . 4 . . 2 1 2 . . . 3 1 . . 1 . . . 2 . . . . . . . . 1 4 1 . 2 . Worker 9 | . . . . . . . . . . 1 . . . . 1 . . . . . 2 . . . . . 3 . 1 . 1 . Builder 7 | . . . . . . . . . . 2 . . . . 1 . . . . . 1 . . . . . . 1 1 . 1 . Hauler 47 | . 2 . . . 5 1 . . . 7 . . . . 1 . 5 . . . 2 2 . . . . 8 2 1 2 3 6 Recycler 9 | . . . . 1 2 1 . . . . . . . . . . . . . . . . . . . . 2 . 2 . . 1 Carrier 1 | . . . . . . . . . . . . . . . . . . 1 . . . . . . . . . . . . . . Mechanic 2 | . . . . . . . . . . . . . . . . . . . . . . . . . . . . 1 . . 1 . Operator 4 | . . . . . . 1 . . . . . . . . . . . 1 . . . . . . . . . . . . 2 . Watcher 37 | . 2 . . . 4 2 . . . 5 . . . . . . 1 2 . . 1 1 . . . . 4 3 2 2 5 3 Swarmer 91 | . 5 . . . 3 3 . . . 7 . 3 . 3 5 . . 4 . . . . 10 . . 8 14 . 7 . 13 6 Saboteur 3 | . . . . . . . . . . . . . . . . . . . . . . . . . . . . . . . 2 1 Grunt 175 | . 9 2 . . 21 2 . . 3 12 . 2 . 4 12 . 6 4 2 . 11 8 2 3 . 16 7 18 8 7 13 3 Brawler 12 | . . . . . . . . . . . . . . 2 2 . . . . . 1 . 2 . . . . . 2 . 3 . Duelist 12 | . . . . . 1 . . . 2 . . . . 2 1 . . . . . 1 1 1 . 1 1 . . . . 1 . Protector 3 | . . . . . . . . . . . . . . . . . . . . . . . . . . . . . . . 3 . Researcher 8 | . . . . . . . . . . . . . . . . . . . . . . . . . . . . 4 . 2 2 . Sentry 73 | . . . . 1 8 4 . . . 6 1 1 . 2 8 . 5 7 . 2 2 6 2 . . 2 4 2 . 1 6 3 Demolisher 2 | . . . . . . . . . . . . . . . . . . 1 . . . . . . . . . . 1 . . . Hunter 62 | . . . . . . . . . . 2 . . . 5 3 . 3 . 1 . . 4 2 8 . 6 4 4 7 5 8 . Programmer 14 | . . . . . . 1 . . . 2 . . . 1 . . 1 . . . . 2 1 . . . 1 3 . . . 2 Behemoth 5 | . . . . . . . . . . . 1 . . 1 . . . 1 . . . . . . . . 2 . . . . . Cetus Guard 6 | . . . . . . . . . . . . . . . . . . . 6 . . . . . . . . . . . . . Lightning 1 | . . . . . . . . . . . . . . . . . . . . . 1 . . . . . . . . . . . Investigator 1 | . . . . . . . . . . . . . . . . . . . . . . . . . . . . . . . . 1 Striker 1 | . . . . . . . . . . . . . . . . . . . . . . . . . . . 1 . . . . . Executioner 3 | . . . . . . . . . . . . . . . . . . . . . . . . . . . . . 1 . 2 . Alpha 7 4 | . . . . . . . . . . . . . . . . . . . . . . . . . . . . 1 . 1 2 . Thug 3 | . . . . . . . . . 2 . . . . . . . . . 1 . . . . . . . . . . . . . Butcher 2 | . . . . . . . . . . . . . . . . . . 1 1 . . . . . . . . . . . . . Knight 1 | . . . . . . . . . . . . . . . . . . . . . . . . . . . . 1 . . . . Best Kill Streak 18 | . 3 2 . 1 9 6 . . 3 5 1 4 . 7 5 . 3 4 4 2 8 7 7 4 1 7 10 7 18 3 15 9 Combat Bots Only 16 | . 3 2 . 1 6 3 . . 3 4 1 4 . 7 5 . 3 4 4 2 7 4 7 4 1 7 7 4 16 3 14 7 Max Kills in Single Turn 4 | . 1 1 . 1 3 2 . . 1 2 1 1 . 2 1 . 1 2 1 1 2 1 2 1 1 1 2 2 4 2 3 2 Gunslinging 1 | . . . . . . . . . . . . . . . . . . . . . . . . . . . . . . 1 1 . Exploded 3 | . . . . . 3 . . . . 1 . . . . . . . . . . . . . . . . . 1 3 1 2 . Melee . | . . . . . . . . . . . . . . . . . . . . . . . . . . . . . . . . . Uniques/NPCs Destroyed . | . . . . . . . . . . . . . . . . . . . . . . . . . . . . . . . . . Combat | -11 -10 -10 -10 -9 -8 -7 -7 -7 -6 -6 -6 -6 -6 -5 -5 -5 -5 -5 -5 -5 -5 -4 -4 -4 -4 -3 -3 -3 -2 -2 -2 -1 -------- Run | Scr Mat Min Exi Min Mat Fac Low Dat Pro Fac Low Low Zio Pro Fac Was Fac Ext Cet Arc Hub Fac Upp Upp War Pro Res Tes Res Qua Sec Acc Damage Taken 14024 | . 819 . . 74 1381 867 . . 242 1051 127 156 . 304 533 . 325 599 745 116 717 223 91 136 33 403 624 524 580 1325 1056 973 Core 11483 | . 688 . . 71 1154 723 . . 196 838 103 124 . 245 431 . 262 481 623 95 582 184 72 110 24 324 502 418 475 1119 855 784 Absorbed by Shields 3638 | . . . . . . . . . . 277 47 59 . 106 189 . 114 227 198 42 252 81 34 50 12 148 227 190 206 439 381 359 Redirected to Core 8870 | . 425 . . 11 793 502 . . 157 701 85 112 . 215 351 . 227 422 440 76 492 132 63 93 24 270 416 353 364 759 719 668 Core Remaining (%) 84 | 100 . . . 100 100 . . . 100 . . . . 100 . . . . . . 51 . . . . 97 . 100 . . 72 26 Volleys Fired 1402 | . 97 5 . 10 129 50 . . 39 87 6 14 2 25 43 1 29 50 31 4 37 47 25 20 6 51 104 85 107 92 145 61 Largest 4 | . 1 1 . 1 3 3 . . 3 3 3 3 1 1 1 1 3 3 3 3 3 3 4 4 4 4 4 4 2 3 4 4 Hottest 355 | . 50 45 . 45 147 147 . . 166 250 240 240 250 250 250 250 250 315 105 105 315 105 193 193 193 193 355 331 240 294 264 293 Shots Fired 3193 | . 97 5 . 10 255 101 . . 63 223 18 42 2 25 43 1 53 150 93 12 111 139 97 77 18 188 270 207 123 139 451 180 Gun 2013 | . 97 5 . 10 244 91 . . 51 178 18 42 2 25 43 1 17 . . . . . 22 17 2 35 102 135 114 131 451 180 Cannon 1180 | . . . . . 11 10 . . 12 45 . . . . . . 36 150 93 12 111 139 75 60 16 153 168 72 9 8 . . Launcher . | . . . . . . . . . . . . . . . . . . . . . . . . . . . . . . . . . Special . | . . . . . . . . . . . . . . . . . . . . . . . . . . . . . . . . . Kinetic 800 | . . . . . 205 37 . . 39 32 . . . . . . . . . . . . . . . . 95 59 107 59 122 45 Thermal 2077 | . 92 . . . 22 64 . . 24 191 18 42 2 25 43 1 53 150 93 12 111 139 97 77 18 188 175 148 16 74 133 69 Explosive . | . . . . . . . . . . . . . . . . . . . . . . . . . . . . . . . . . Electromagnetic 310 | . 5 5 . 10 28 . . . . . . . . . . . . . . . . . . . . . . . . . 196 66 Entropic 6 | . . . . . . . . . . . . . . . . . . . . . . . . . . . . . . 6 . . Robot Hit Streak 149 | . 13 3 . 13 54 28 . . 64 120 16 17 40 24 47 9 40 41 31 11 26 118 149 27 38 37 33 26 47 31 85 69 Robot Miss Streak 4 | . 4 1 . . 2 2 . . . 1 1 2 . 3 4 1 3 1 1 1 2 . 1 1 1 1 1 3 3 1 3 2 Penetration Max 4 | . . . . . . . . . . . . . . . . . . . . . . . . . . . 1 2 2 1 4 2 Secondary Targets 30 | . . . . . 9 . . . . . . . . . . . . . . . . . . . . . . . . 1 17 3 Max Gunslinging Chain 2 | . . . . . 1 . . . . . . . . . . . . . . . . . . . . . . . . 1 2 1 Shots Hit Robots 2450 | . 67 4 . 10 224 87 . . 57 173 14 33 2 25 43 1 46 114 74 10 79 114 62 54 16 123 181 135 113 112 355 122 Core Hits 1370 | . 31 4 . 3 86 33 . . 23 70 7 12 3 52 111 2 69 42 31 7 42 46 32 25 7 61 93 73 76 55 205 69 Critical Hits 469 | . . . . . 2 . . . . 33 . 3 . . . . 3 9 9 . 6 11 6 6 . 11 52 54 76 44 103 41 Critical Kills 168 | . . . . . 1 . . . . 12 . 1 . . . . 1 . 2 . 2 4 1 1 . 6 22 27 25 15 34 14 Critical Parts Destroyed 250 | . . . . . 1 . . . . 20 . 2 . . . . 2 9 5 . 4 5 5 3 . 5 26 23 39 24 53 24 Melee Attacks . | . . . . . . . . . . . . . . . . . . . . . . . . . . . . . . . . . Impact . | . . . . . . . . . . . . . . . . . . . . . . . . . . . . . . . . . Slashing . | . . . . . . . . . . . . . . . . . . . . . . . . . . . . . . . . . Piercing . | . . . . . . . . . . . . . . . . . . . . . . . . . . . . . . . . . Sneak Attacks . | . . . . . . . . . . . . . . . . . . . . . . . . . . . . . . . . . Combat Hostiles . | . . . . . . . . . . . . . . . . . . . . . . . . . . . . . . . . . Follow-up Attacks . | . . . . . . . . . . . . . . . . . . . . . . . . . . . . . . . . . Damage Inflicted 74040 | . 864 170 . 183 4006 1565 . . 1081 4908 378 796 86 2649 4508 188 2697 4886 2562 363 2682 3839 1921 1756 434 4358 5438 4059 4135 2922 7480 3126 Guns 35897 | . 853 84 . 136 3545 1332 . . 817 3573 378 796 86 2649 4508 188 1734 . . . . . 155 207 26 382 654 1411 1120 1898 6540 2825 Cannons 33235 | . . . . . 203 233 . . 264 989 . . . . . . 963 4886 2562 363 2600 3839 1766 1549 408 3976 4784 2034 1120 696 . . Explosions 4897 | . . 86 . 47 258 . . . . 346 . . . . . . . . . . 82 . . . . . . 614 1895 328 940 301 Melee . | . . . . . . . . . . . . . . . . . . . . . . . . . . . . . . . . . Ramming 11 | . 11 . . . . . . . . . . . . . . . . . . . . . . . . . . . . . . . Kinetic 8185 | . . . . . 2977 571 . . 674 549 . . . . . . . . . . . . . . . . 466 303 935 355 955 400 Thermal 61673 | . 775 86 . 47 582 994 . . 407 4359 378 796 86 2649 4508 188 2697 4886 2562 363 2600 3839 1921 1756 434 4358 4972 3756 3200 2205 4239 2030 Explosive . | . . . . . . . . . . . . . . . . . . . . . . . . . . . . . . . . . Electromagnetic 3809 | . 78 84 . 136 447 . . . . . . . . . . . . . . . 82 . . . . . . . . . 2286 696 Impact . | . . . . . . . . . . . . . . . . . . . . . . . . . . . . . . . . . Slashing . | . . . . . . . . . . . . . . . . . . . . . . . . . . . . . . . . . Piercing . | . . . . . . . . . . . . . . . . . . . . . . . . . . . . . . . . . Entropic 362 | . . . . . . . . . . . . . . . . . . . . . . . . . . . . . . 362 . . Highest Corruption 12 | . . . . . . . . . . . . . . . 1 11 12 3 . . 9 . . . 4 . 3 2 . . 1 . Average Corruption 4 | . . . . . . . . . . . . . . . 1 5 6 2 . . 3 . . . 1 . 2 1 . . 1 . Corruption Purged 17 | . . . . . . . . . . . . . . . . . 9 3 . . 1 . . . . . 1 2 . . 1 . Effects 42 | . . . . . . . . . . . . . . . . 3 26 3 . . 8 . . . . . 2 . . . . . Message Errors 9 | . . . . . . . . . . . . . . . . 2 2 1 . . 3 . . . . . 1 . . . . . Matter Fused 7 | . . . . . . . . . . . . . . . . . 5 1 . . 1 . . . . . . . . . . . Heat Flow Errors 1 | . . . . . . . . . . . . . . . . . 1 . . . . . . . . . . . . . . . Energy Discharges 6 | . . . . . . . . . . . . . . . . . 5 . . . 1 . . . . . . . . . . . Data Loss (minor) 4 | . . . . . . . . . . . . . . . . . 4 . . . . . . . . . . . . . . . Misdirections 8 | . . . . . . . . . . . . . . . . 1 7 . . . . . . . . . . . . . . . Targeting Errors 7 | . . . . . . . . . . . . . . . . . 2 1 . . 3 . . . . . 1 . . . . . Overload Shots 27 | . . . . . . . . . . . . . . . . . . 9 . . 3 1 . . . . 9 5 . . . . Effects 4 | . . . . . . . . . . . . . . . . . . 1 . . . . . . . . . 3 . . . . Energy Bleed 1 | . . . . . . . . . . . . . . . . . . 1 . . . . . . . . . . . . . . Meltdown 3 | . . . . . . . . . . . . . . . . . . . . . . . . . . . . 3 . . . . Overflow Damage 1174 | . . . . . 58 1 . . . 99 . . . . . . 30 131 20 . 37 69 18 17 . 86 56 273 186 14 10 69 Projectiles 617 | . . . . . . 1 . . . 15 . . . . . . 30 131 20 . 37 69 18 17 . 86 56 123 . 14 . . Explosions 557 | . . . . . 58 . . . . 84 . . . . . . . . . . . . . . . . . 150 186 . 10 69 Melee . | . . . . . . . . . . . . . . . . . . . . . . . . . . . . . . . . . Knockbacks . | . . . . . . . . . . . . . . . . . . . . . . . . . . . . . . . . . Impact . | . . . . . . . . . . . . . . . . . . . . . . . . . . . . . . . . . Kinetic . | . . . . . . . . . . . . . . . . . . . . . . . . . . . . . . . . . Secondary . | . . . . . . . . . . . . . . . . . . . . . . . . . . . . . . . . . Self-Inflicted Damage 620 | . 5 . . . . . . . . 293 . . . . . . . . . . 103 . . . . . . . 16 . 69 134 Shots 9 | . . . . . . . . . . 3 . . . . . . . . . . 1 . . . . . . . 1 . 2 2 Rammed 2 | . 2 . . . . . . . . . . . . . . . . . . . . . . . . . . . . . . . Targets Rammed 2 | . 2 . . . . . . . . . . . . . . . . . . . . . . . . . . . . . . . Kicked . | . . . . . . . . . . . . . . . . . . . . . . . . . . . . . . . . . Crushed . | . . . . . . . . . . . . . . . . . . . . . . . . . . . . . . . . . Highest Temperature 433 | . 164 31 . 60 364 387 . . 378 392 284 250 208 232 350 108 202 224 16 6 216 54 198 269 104 250 433 195 189 24 199 195 Average Temperature 83 | . 43 16 . 28 155 97 . . 146 126 100 97 112 80 76 60 47 48 5 3 19 4 70 96 60 80 65 69 53 5 91 88 Received Heat Transfer 2255 | . 363 . . 27 648 204 . . 108 120 9 32 . 45 116 . 66 42 31 6 66 6 9 6 . 44 12 55 42 30 96 72 Effects 18 | . . . . . 5 2 . . 1 8 . 1 . . . . . . . . . . . . . . 1 . . . . . Shutdowns 3 | . . . . . . . . . 1 1 . . . . . . . . . . . . . . . . 1 . . . . . Energy Bleed 6 | . . . . . . . . . . 5 . 1 . . . . . . . . . . . . . . . . . . . . Interference 6 | . . . . . 3 2 . . . 1 . . . . . . . . . . . . . . . . . . . . . . Matter Decay 1 | . . . . . 1 . . . . . . . . . . . . . . . . . . . . . . . . . . . Short Circuit 1 | . . . . . 1 . . . . . . . . . . . . . . . . . . . . . . . . . . . Damage (minor) 1 | . . . . . . . . . . 1 . . . . . . . . . . . . . . . . . . . . . . Siege Activations . | . . . . . . . . . . . . . . . . . . . . . . . . . . . . . . . . . Robots Corrupted 3 | . . . . . . . . . . . . . . . . . . . . . . . . . . . . . . . 3 . Combat Hostiles 2 | . . . . . . . . . . . . . . . . . . . . . . . . . . . . . . . 2 . Parts Fried 20 | . . . . 1 1 . . . . . . . . . . . . 3 . . 3 . . . . . . . . . 12 . Impact Corruptions . | . . . . . . . . . . . . . . . . . . . . . . . . . . . . . . . . . Robots Melted 18 | . . . . . . . . . . . . . . 1 4 . . 2 2 . . 3 . 2 1 . 1 1 . . 1 . Combat Hostiles 17 | . . . . . . . . . . . . . . 1 4 . . 2 2 . . 2 . 2 1 . 1 1 . . 1 . Parts Melted 185 | . 3 . . . 3 4 . . 1 10 . . . 9 16 . 15 19 4 4 8 20 5 6 1 16 17 14 2 . 4 4 Heat Transferred 81087 | . 1928 100 . 50 779 1893 . . 796 5769 555 1221 125 3600 6350 275 3975 6120 3800 550 3930 5650 2872 2596 368 5981 6212 4506 2419 2344 4432 1891 Parts Sabotaged . | . . . . . . . . . . . . . . . . . . . . . . . . . . . . . . . . . Parts Stolen . | . . . . . . . . . . . . . . . . . . . . . . . . . . . . . . . . . Parts Stripped . | . . . . . . . . . . . . . . . . . . . . . . . . . . . . . . . . . Power Chain Reactions 12 | . . 1 . 1 2 . . . . . . . . . . . . . . . . . . . . . . . . . 6 2 Missiles Intercepted . | . . . . . . . . . . . . . . . . . . . . . . . . . . . . . . . . . Alert | -11 -10 -10 -10 -9 -8 -7 -7 -7 -6 -6 -6 -6 -6 -5 -5 -5 -5 -5 -5 -5 -5 -4 -4 -4 -4 -3 -3 -3 -2 -2 -2 -1 ------- Run | Scr Mat Min Exi Min Mat Fac Low Dat Pro Fac Low Low Zio Pro Fac Was Fac Ext Cet Arc Hub Fac Upp Upp War Pro Res Tes Res Qua Sec Acc Peak Influence 2551 | . 404 201 . 66 733 602 . . . 538 . . . . 721 198 1146 1151 1135 676 986 859 . . . . 910 1074 1148 811 2545 2551 Average Influence 551 | . 240 160 . 27 480 373 . . . 298 . . . . 464 193 457 517 775 630 489 435 . . . . 595 617 850 276 970 2025 Maximum Alert Level 5 | . 2 1 . . 3 2 . . . 2 . . . . 3 . 4 4 4 2 3 3 . . . . 3 3 4 3 5 5 Low Security (%) 17 | 100 30 93 . 100 9 1 . . . 32 . . . . 4 100 10 18 . . . 8 . . . . 3 5 . 58 5 . Level 1 26 | . 63 6 . . 14 77 . . . 43 . . . . 27 . 29 21 6 . 43 51 . . . . 25 16 . 14 6 . Level 2 32 | . 6 . . . 74 20 . . . 23 . . . . 64 . 52 30 23 100 41 18 . . . . 31 34 21 13 44 . Level 3 16 | . . . . . 1 . . . . . . . . . 3 . 2 22 50 . 14 20 . . . . 38 43 66 14 15 . Level 4 1 | . . . . . . . . . . . . . . . . . 5 7 18 . . . . . . . . . 12 . . 3 Level 5 . | . . . . . . . . . . . . . . . . . . . . . . . . . . . . . . . . . High Security . | . . . . . . . . . . . . . . . . . . . . . . . . . . . . . . . . . Max Security 5 | . . . . . . . . . . . . . . . . . . . . . . . . . . . . . . . 27 96 Squads Dispatched 133 | . 2 . . . 5 6 . . . 9 . 1 . . 7 . 2 4 . . 6 3 . . . 1 6 10 2 9 28 32 Investigation 18 | . 1 . . . 2 . . . . 3 . . . . 3 . 1 2 . . . 1 . . . . 2 2 . 1 . . Extermination 12 | . . . . . . 2 . . . 2 . . . . 1 . . . . . . 1 . . . . . 3 . 2 1 . Reinforcement 39 | . 1 . . . 3 1 . . . 4 . . . . . . 1 . . . 4 1 . . . . 4 5 2 5 6 2 Assault 55 | . . . . . . . . . . . . 1 . . . . . 2 . . 1 . . . . 1 . . . . 20 30 Garrison 9 | . . . . . . 3 . . . . . . . . 3 . . . . . 1 . . . . . . . . 1 1 . Intercept . | . . . . . . . . . . . . . . . . . . . . . . . . . . . . . . . . . Construction Impeded 2 | . . . . . . . . . . . . . . . . . . . . . . . . . . . . 2 . . . . Haulers Reinforced 12 | . . . . . . . . . . 3 . . . . . . 1 . . . . 1 . . . . 2 1 . 2 . 2 Stealth | -11 -10 -10 -10 -9 -8 -7 -7 -7 -6 -6 -6 -6 -6 -5 -5 -5 -5 -5 -5 -5 -5 -4 -4 -4 -4 -3 -3 -3 -2 -2 -2 -1 --------- Run | Scr Mat Min Exi Min Mat Fac Low Dat Pro Fac Low Low Zio Pro Fac Was Fac Ext Cet Arc Hub Fac Upp Upp War Pro Res Tes Res Qua Sec Acc Distress Signals 26 | . . . . . 3 . . . . 1 . . . . 1 . . 1 1 . 3 1 . . . . 4 3 2 1 4 1 Communications Jammed . | . . . . . . . . . . . . . . . . . . . . . . . . . . . . . . . . . Distress Signals . | . . . . . . . . . . . . . . . . . . . . . . . . . . . . . . . . . Times Spotted 975 | . 26 12 . 2 51 18 . . 16 40 1 22 . 24 50 4 25 39 23 4 67 25 24 11 12 32 42 38 43 25 160 139 Peak Tracking Total 49 | . 8 16 . 2 6 4 . . 5 4 1 10 . 6 7 4 4 8 5 3 18 4 7 3 15 10 5 6 8 4 41 49 Tactical Retreats 69 | . 1 2 . . . . . . . 2 . 2 . 1 7 . . 2 . . 7 . 3 . . 1 4 3 2 . 15 17 Traps | -11 -10 -10 -10 -9 -8 -7 -7 -7 -6 -6 -6 -6 -6 -5 -5 -5 -5 -5 -5 -5 -5 -4 -4 -4 -4 -3 -3 -3 -2 -2 -2 -1 ------- Run | Scr Mat Min Exi Min Mat Fac Low Dat Pro Fac Low Low Zio Pro Fac Was Fac Ext Cet Arc Hub Fac Upp Upp War Pro Res Tes Res Qua Sec Acc Traps Triggered 21 | . 2 . . . 1 1 . . . . . . . . 3 . 2 . . . 1 . . . . . 2 2 . 2 1 4 Indirectly 1 | . . . . . . . . . . . . . . . . . . . . . 1 . . . . . . . . . . . Trap Hack Attempts . | . . . . . . . . . . . . . . . . . . . . . . . . . . . . . . . . . Triggered . | . . . . . . . . . . . . . . . . . . . . . . . . . . . . . . . . . Disarmed . | . . . . . . . . . . . . . . . . . . . . . . . . . . . . . . . . . Reprogrammed 18 | . . . . . . . . . . 6 . . . . . . . . . . 6 . . . . . . . . 6 . . Reused 12 | . . . . . . . . . . 1 . . . . . . . . . . 5 . . . . . . . . 6 . . Traps Extracted . | . . . . . . . . . . . . . . . . . . . . . . . . . . . . . . . . . Installed . | . . . . . . . . . . . . . . . . . . . . . . . . . . . . . . . . . Triggered 21 | . . . . . . . . . . 1 . . . . . . . . . . 6 . . . 7 1 . . . 6 . . Machines | -11 -10 -10 -10 -9 -8 -7 -7 -7 -6 -6 -6 -6 -6 -5 -5 -5 -5 -5 -5 -5 -5 -4 -4 -4 -4 -3 -3 -3 -2 -2 -2 -1 ---------- Run | Scr Mat Min Exi Min Mat Fac Low Dat Pro Fac Low Low Zio Pro Fac Was Fac Ext Cet Arc Hub Fac Upp Upp War Pro Res Tes Res Qua Sec Acc Machines Disabled 56 | . . . . . . . . . . 6 . . . . . . . 5 . . 12 . 1 . . . 1 9 . 10 9 3 Max in Single Turn 8 | . . . . . . . . . . 3 . . . . . . . 1 . . 8 . 1 . . . 1 1 . 2 1 1 Garrison Access 14 | . . . . . 1 1 . . . 1 . . . . . . 2 . . . 1 1 . . . . 3 . 2 1 1 . Network Hub 2 | . . . . . . . . . . . . . . . . . . . . . 2 . . . . . . . . . . . Energy Cycler 2 | . . . . . . . . . . . . . . . . . . . . . . . . . . . . . . . . 2 Machines Sabotaged . | . . . . . . . . . . . . . . . . . . . . . . . . . . . . . . . . . Garrisons Compromised . | . . . . . . . . . . . . . . . . . . . . . . . . . . . . . . . . . Overloaded Fab Kills . | . . . . . . . . . . . . . . . . . . . . . . . . . . . . . . . . . Fab Network Shutdowns 3 | . . . . . . . . . . . . . . . . . 1 . . . . 1 . . . . . 1 . . . . Hacking | -11 -10 -10 -10 -9 -8 -7 -7 -7 -6 -6 -6 -6 -6 -5 -5 -5 -5 -5 -5 -5 -5 -4 -4 -4 -4 -3 -3 -3 -2 -2 -2 -1 --------- Run | Scr Mat Min Exi Min Mat Fac Low Dat Pro Fac Low Low Zio Pro Fac Was Fac Ext Cet Arc Hub Fac Upp Upp War Pro Res Tes Res Qua Sec Acc Machines Accessed 200 | . 5 . . . 11 11 2 4 . 18 . . 1 . 14 . 14 7 3 . 11 19 . . 10 . 21 11 2 19 17 . Terminals 139 | . 5 . . . 7 6 . . . 11 . . . . 12 . 11 7 3 . 11 14 . . . . 10 9 1 16 16 . Fabricators 12 | . . . . . . . . . . 4 . . . . 1 . 1 . . . . 1 . . . . 3 2 . . . . Repair Stations 5 | . . . . . 2 . . . . 2 . . . . . . . . . . . 1 . . . . . . . . . . Recycling Units 5 | . . . . . . 3 . . . . . . . . . . . . . . . . . . . . 2 . . . . . Scanalyzers 7 | . . . . . 1 . . . . . . . . . . . . . . . . 2 . . . . 2 . . 2 . . Garrison Access 15 | . . . . . 1 2 . . . 1 . . . . 1 . 2 . . . . 1 . . . . 4 . 1 1 1 . Total Hacks 1139 | . 30 . . . 57 42 10 27 . 101 . . 3 . 73 . 74 41 20 . 86 120 . . 26 . 114 89 6 115 105 . Successful 777 | . 19 . . . 37 27 10 27 . 63 . . 3 . 42 . 45 32 14 . 54 90 . . 26 . 90 51 5 75 67 . Failed 356 | . 11 . . . 19 15 . . . 37 . . . . 31 . 28 9 6 . 32 29 . . . . 23 38 1 39 38 . Catastrophic 24 | . . . . . 1 3 . . . 1 . . . . 2 . 4 1 1 . 2 1 . . . . 4 1 . 1 2 . Database Lockouts 7 | . . . . . 2 . . . . 1 . . . . . . 1 . . . . 1 . . . . 1 . . 1 . . Manual 633 | . 19 . . . 35 16 . . . 55 . . . . 44 . 57 30 20 1 59 51 . . 1 . 57 56 2 58 72 . Terminals 894 | . 30 . . . 44 23 . . . 65 . . . . 70 . 65 41 20 . 86 92 . . . . 68 73 5 108 104 . Fabricators 83 | . . . . . . . . . . 27 . . . . 1 . 5 . . . . 13 . . . . 21 16 . . . . Repair Stations 16 | . . . . . 6 . . . . 7 . . . . . . . . . . . 3 . . . . . . . . . . Recycling Units 23 | . . . . . . 12 . . . . . . . . . . . . . . . . . . . . 11 . . . . . Scanalyzers 24 | . . . . . 5 . . . . . . . . . . . . . . . . 10 . . . . 3 . . 6 . . Garrison Access 33 | . . . . . 2 7 . . . 2 . . . . 2 . 4 . . . . 2 . . . . 11 . 1 1 1 . Terminal Hacks 442 | . 11 . . . 18 9 10 27 . 33 . . 3 . 25 . 30 26 9 . 33 44 . . 26 . 32 27 3 46 30 . Record 59 | . . . . . . . 9 11 . . . . . . 1 . . . 2 . . 1 . . 24 . 3 . . 6 2 . Part Schematic 32 | . . . . . . 1 . 8 . 2 . . 3 . 1 . 5 . . . 2 4 . . . . 4 1 . . 1 . Robot Schematic 9 | . . . . . . . . 5 . . . . . . . . . 1 . . 1 . . . . . 1 . . 1 . . Robot Analysis 10 | . . . . . . . . . . . . . . . 3 . . . . . 1 1 . . . . . 1 1 1 2 . Prototype ID Bank 65 | . 2 . . . 4 1 . 3 . 11 . . . . 6 . 5 8 . . 6 4 . . . . 5 2 1 6 1 . Open Door 11 | . . . . . . . 1 . . . . . . . . . 1 1 1 . . . . . 2 . . 1 . 2 2 . Level Access Points 14 | . 1 . . . 1 . . . . . . . . . 1 . 2 1 2 . 1 1 . . . . 1 1 . 1 1 . Branch Access Points 16 | . 1 . . . 1 1 . . . 1 . . . . 1 . 2 1 1 . 1 1 . . . . 1 1 . 1 2 . Emergency Access Points 3 | . . . . . 1 . . . . . . . . . . . . . . . 1 . . . . . 1 . . . . . Machine Index 9 | . . . . . 1 1 . . . 1 . . . . . . 1 . . . . 1 . . . . 1 1 . 1 1 . Terminal Index 10 | . 1 . . . 1 . . . . . . . . . . . . . 3 . 1 1 . . . . 1 1 . . 1 . Fabricator Index 3 | . . . . . . . . . . . . . . . 1 . . . . . . . . . . . . 1 . 1 . . Scanalyzer Index 3 | . . . . . . . . . . . . . . . . . . . . . . . . . . . 1 . 1 1 . . Garrison Index 3 | . . . . . . . . . . . . . . . 1 . . . . . . . . . . . 1 1 . . . . Alert Level 62 | . 2 . . . 4 1 . . . 6 . . . . 4 . 5 3 . . 7 12 . . . . 3 3 . 6 6 . Unreport Threat 49 | . . . . . 2 . . . . 3 . . . . 2 . 7 5 . . 3 8 . . . . 2 6 . 7 4 . Locate Traps 2 | . . . . . . . . . . . . . . . . . . . . . . . . . . . 1 . . 1 . . Reprogram Traps 3 | . . . . . . . . . . 1 . . . . . . . . . . 1 . . . . . . . . 1 . . Maintenance Status 1 | . . . . . . . . . . . . . . . . . . . . . . . . . . . . . . 1 . . Security Status 1 | . . . . . . . . . . . . . . . . . . . . . . . . . . . . . . 1 . . Surveillance Status 1 | . . . . . . . . . . . . . . . . . . 1 . . . . . . . . . . . . . . Patrol Status 1 | . . . . . . . . . . . . . . . . . . . . . . 1 . . . . . . . . . . Investigation Status 1 | . . . . . . . . . . . . . . . . . . 1 . . . . . . . . . . . . . . Reinforcement Status 1 | . . . . . . . . . . . . . . . . . . . . . 1 . . . . . . . . . . . Assault Status 1 | . . . . . . . . . . . . . . . . . . 1 . . . . . . . . . . . . . . Recall Investigation 7 | . . . . . . . . . . 1 . . . . . . . 1 . . 1 1 . . . . 1 1 . 1 . . Recall Extermination 6 | . . . . . . . . . . . . . . . . . . . . . . 1 . . . . . 2 . 2 1 . Recall Reinforcements 10 | . . . . . . . . . . . . . . . . . . . . . 3 1 . . . . 1 2 . 2 1 . Hauler Manifests 12 | . . . . . 2 1 . . . 2 . . . . 1 . 1 1 . . 1 1 . . . . 1 . . . 1 . Registered Components 9 | . 1 . . . . 1 . . . 1 . . . . . . . . . . 1 1 . . . . 1 1 . 1 1 . Registered Prototypes 8 | . . . . . . 1 . . . 1 . . . . 1 . 1 . . . . 1 . . . . 1 . . 1 1 . Zone Layout 19 | . 3 . . . 1 1 . . . 3 . . . . 2 . . 1 . . 1 3 . . . . 1 1 . 1 1 . Activate Exoskeleton 1 | . . . . . . . . . . . . . . . . . . . . . . . . . . . . . . . 1 . Fabricator Hacks 35 | . . . . . . . . . . 5 . . . . . . 2 . . . . 9 . . . . 12 7 . . . . Network Status 4 | . . . . . . . . . . . . . . . . . . . . . . . . . . . 4 . . . . . Load Schematic 17 | . . . . . . . . . . 3 . . . . . . 1 . . . . 4 . . . . 6 3 . . . . Build 14 | . . . . . . . . . . 2 . . . . . . 1 . . . . 5 . . . . 2 4 . . . . Repair Station Hacks 8 | . . . . . 4 . . . . 2 . . . . . . . . . . . 2 . . . . . . . . . . Scan Component 4 | . . . . . 2 . . . . 1 . . . . . . . . . . . 1 . . . . . . . . . . Repair 4 | . . . . . 2 . . . . 1 . . . . . . . . . . . 1 . . . . . . . . . . Recycling Unit Hacks 9 | . . . . . . 3 . . . . . . . . . . . . . . . . . . . . 6 . . . . . Process 2 | . . . . . . . . . . . . . . . . . . . . . . . . . . . 2 . . . . . Report Inventory 7 | . . . . . . 3 . . . . . . . . . . . . . . . . . . . . 4 . . . . . Scanalyzer 21 | . . . . . 5 . . . . . . . . . . . . . . . . 10 . . . . 2 . . 4 . . Insert Component 11 | . . . . . 2 . . . . . . . . . . . . . . . . 4 . . . . 1 . . 4 . . Analyze 10 | . . . . . 3 . . . . . . . . . . . . . . . . 6 . . . . 1 . . . . . Garrison Access Hacks 12 | . . . . . 1 1 . . . 1 . . . . . . 2 . . . . 1 . . . . 3 . 1 1 1 . Seal Access 12 | . . . . . 1 1 . . . 1 . . . . . . 2 . . . . 1 . . . . 3 . 1 1 1 . Unauthorized Hacks 564 | . 19 . . . 20 28 . . . 51 . . . . 39 . 25 13 10 . 56 50 . . . . 74 42 2 54 81 . Terminals 200 | . 8 . . . 9 5 . . . 11 . . . . 16 . 10 6 5 . 21 20 . . . . 15 13 1 24 36 . Track 83 | . 3 . . . 4 1 . . . 6 . . . . 7 . 5 1 1 . 6 10 . . . . 8 5 . 11 15 . Assimilate 16 | . 1 . . . . 1 . . . 1 . . . . 1 . 2 1 . . 1 4 . . . . . . . 1 3 . Botnet 57 | . 3 . . . 4 3 . . . 3 . . . . 4 . 3 3 3 . 4 4 . . . . 5 5 1 6 6 . Detonate 2 | . . . . . . . . . . . . . . . . . . 1 . . 1 . . . . . . . . . . . Disrupt 30 | . . . . . 1 . . . . . . . . . 3 . . . . . 7 1 . . . . 1 1 . 5 11 . Operators 12 | . 1 . . . . . . . . 1 . . . . 1 . . . 1 . 2 1 . . . . 1 2 . 1 1 . Fabricators 28 | . . . . . . . . . . 11 . . . . 1 . 1 . . . . 3 . . . . 8 4 . . . . Report 9 | . . . . . . . . . . 4 . . . . 1 . 1 . . . . 1 . . . . 2 . . . . . Prioritize 8 | . . . . . . . . . . 3 . . . . . . . . . . . 1 . . . . 2 2 . . . . Siphon 9 | . . . . . . . . . . 3 . . . . . . . . . . . 1 . . . . 3 2 . . . . Haulers 2 | . . . . . . . . . . 1 . . . . . . . . . . . . . . . . 1 . . . . . Repair Stations 1 | . . . . . . . . . . . . . . . . . . . . . . 1 . . . . . . . . . . Mechanics 1 | . . . . . . . . . . . . . . . . . . . . . . 1 . . . . . . . . . . Recycling Units 13 | . . . . . . 9 . . . . . . . . . . . . . . . . . . . . 4 . . . . . Monitor 5 | . . . . . . 3 . . . . . . . . . . . . . . . . . . . . 2 . . . . . Reject 4 | . . . . . . 3 . . . . . . . . . . . . . . . . . . . . 1 . . . . . Mask 4 | . . . . . . 3 . . . . . . . . . . . . . . . . . . . . 1 . . . . . Scanalyzers 1 | . . . . . . . . . . . . . . . . . . . . . . . . . . . 1 . . . . . Researchers 1 | . . . . . . . . . . . . . . . . . . . . . . . . . . . 1 . . . . . Garrison Access 7 | . . . . . . . . . . . . . . . . . . . . . . . . . . . 7 . . . . . Broadcast 1 | . . . . . . . . . . . . . . . . . . . . . . . . . . . 1 . . . . . Decoy 1 | . . . . . . . . . . . . . . . . . . . . . . . . . . . 1 . . . . . Redirect 1 | . . . . . . . . . . . . . . . . . . . . . . . . . . . 1 . . . . . Reprogram 1 | . . . . . . . . . . . . . . . . . . . . . . . . . . . 1 . . . . . Intercept 1 | . . . . . . . . . . . . . . . . . . . . . . . . . . . 1 . . . . . Watchers 2 | . . . . . . . . . . . . . . . . . . . . . . . . . . . 2 . . . . . Data Cores Recovered 1 | . . . . . . . . . . . . . . . . . . . . . . . . . . . . . . . 1 . Used . | . . . . . . . . . . . . . . . . . . . . . . . . . . . . . . . . . Hacking Detections 130 | . 5 . . . 7 9 . . . 13 . . . . 11 . 12 7 2 . 9 12 . . . . 14 7 1 9 12 . Full Trace Events 7 | . . . . . . . . . . 2 . . . . 2 . . 1 . . . . . . . . . 2 . . . . Feedback Events . | . . . . . . . . . . . . . . . . . . . . . . . . . . . . . . . . . Feedback Blocked . | . . . . . . . . . . . . . . . . . . . . . . . . . . . . . . . . . Robot Schematics Acquired 9 | . . . . . . . . 5 . . . . . . . . . 1 . . 1 . . . . . 1 . . 1 . . Robots Built . | . . . . . . . . . . . . . . . . . . . . . . . . . . . . . . . . . Matter . | . . . . . . . . . . . . . . . . . . . . . . . . . . . . . . . . . Time . | . . . . . . . . . . . . . . . . . . . . . . . . . . . . . . . . . Total Robot Build Rating . | . . . . . . . . . . . . . . . . . . . . . . . . . . . . . . . . . Part Schematics Acquired 39 | . . . . . 2 1 . 8 . 2 . . 3 . 1 . 5 . . . 2 8 . . . . 5 1 . . 1 . Parts Built 13 | . . . . . . . . . . 2 . . . . . . 1 . . . . 4 . . . . 3 3 . . . . Matter 2708 | . . . . . . . . . . 476 . . . . . . 252 . . . . 826 . . . . 400 754 . . . . Time 596 | . . . . . . . . . . 168 . . . . . . 67 . . . . 142 . . . . 66 153 . . . . Total Part Build Rating 88 | . . . . . . . . . . 12 . . . . . . 4 . . . . 26 . . . . 25 21 . . . . Parts Repaired 4 | . . . . . 2 . . . . 1 . . . . . . . . . . . 1 . . . . . . . . . . Time 214 | . . . . . 114 . . . . 30 . . . . . . . . . . . 70 . . . . . . . . . . Parts Recycled . | . . . . . . . . . . . . . . . . . . . . . . . . . . . . . . . . . Recycled Matter 963 | . . . . . . . . . . . . . . . . . . . . . . . . . . . 963 . . . . . Retrieved Matter . | . . . . . . . . . . . . . . . . . . . . . . . . . . . . . . . . . Retrieved Components . | . . . . . . . . . . . . . . . . . . . . . . . . . . . . . . . . . Parts Scanalyzed 7 | . . . . . 2 . . . . . . . . . . . . . . . . 4 . . . . 1 . . . . . Part Schematics Acquired 7 | . . . . . 2 . . . . . . . . . . . . . . . . 4 . . . . 1 . . . . . Parts Damaged 2 | . . . . . 1 . . . . . . . . . . . . . . . . 1 . . . . . . . . . . Bothacking | -11 -10 -10 -10 -9 -8 -7 -7 -7 -6 -6 -6 -6 -6 -5 -5 -5 -5 -5 -5 -5 -5 -4 -4 -4 -4 -3 -3 -3 -2 -2 -2 -1 ------------ Run | Scr Mat Min Exi Min Mat Fac Low Dat Pro Fac Low Low Zio Pro Fac Was Fac Ext Cet Arc Hub Fac Upp Upp War Pro Res Tes Res Qua Sec Acc Used RIF Installer . | . . . . . . . . . . . . . . . . . . . . . . . . . . . . . . . . . Robots Hacked . | . . . . . . . . . . . . . . . . . . . . . . . . . . . . . . . . . Non-combat . | . . . . . . . . . . . . . . . . . . . . . . . . . . . . . . . . . Combat . | . . . . . . . . . . . . . . . . . . . . . . . . . . . . . . . . . Robot Hacks Applied . | . . . . . . . . . . . . . . . . . . . . . . . . . . . . . . . . . Relay Couplers Released 5 | . . . . . 1 . . . . . . . . . . . . . . . 2 . . . . . 2 . . . . . Machine Destruction 3 | . . . . . 1 . . . . . . . . . . . . . . . 2 . . . . . . . . . . . Programmers 2 | . . . . . . . . . . . . . . . . . . . . . . . . . . . 2 . . . . . Robots Rewired 33 | . . . . . . . . . . 1 . . . 2 . . . 19 . . . . 2 . 5 2 . 1 . . 1 . Allies Hacked . | . . . . . . . . . . . . . . . . . . . . . . . . . . . . . . . . . Hacks Repelled . | . . . . . . . . . . . . . . . . . . . . . . . . . . . . . . . . . Allies | -11 -10 -10 -10 -9 -8 -7 -7 -7 -6 -6 -6 -6 -6 -5 -5 -5 -5 -5 -5 -5 -5 -4 -4 -4 -4 -3 -3 -3 -2 -2 -2 -1 -------- Run | Scr Mat Min Exi Min Mat Fac Low Dat Pro Fac Low Low Zio Pro Fac Was Fac Ext Cet Arc Hub Fac Upp Upp War Pro Res Tes Res Qua Sec Acc Total Allies 72 | . 1 2 . 3 . 1 2 . 1 2 . . 3 2 1 . 2 26 5 . 1 4 2 . 5 2 1 1 . 1 4 . Largest Group 21 | . 1 3 1 4 4 1 2 . 1 1 . . 3 3 2 . 2 21 18 9 9 3 5 5 5 2 1 1 . 1 2 1 Highest-Rated Group 1075 | . 10 56 10 50 50 10 62 . 94 94 . . 76 78 78 . 49 696 634 565 565 62 135 135 278 84 26 125 . 10 1075 1075 Highest-Rated Ally 1075 | . 10 31 10 16 16 10 31 . 94 94 . . 42 49 49 . 26 156 137 94 94 26 48 48 60 42 26 125 . 10 1075 1075 Total Orders 45 | . . . . 1 1 . . . . 2 . . . . 1 . 6 6 1 . 1 7 6 6 1 . . . . . 6 . STAY 1 | . . . . . . . . . . 1 . . . . . . . . . . . . . . . . . . . . . . GOTO 26 | . . . . 1 1 . . . . . . . . . 1 . 3 3 . . 1 4 4 3 1 . . . . . 4 . FOLLOW 16 | . . . . . . . . . . 1 . . . . . . 3 2 . . . 3 2 3 . . . . . . 2 . GUARD 2 | . . . . . . . . . . . . . . . . . . 1 1 . . . . . . . . . . . . . Ally Attacks 513 | . . 2 . 2 52 . . . 34 5 . . . 17 14 . . 134 101 15 19 . 3 . . 2 . 9 . . 80 24 Total Damage 16117 | . . 42 . 24 601 . . . 1417 133 . . . 317 355 . . 3824 2599 607 646 . 118 . . 49 . 810 . . 3678 897 Kills 81 | . . . . 1 7 . . . 9 . . . . 2 2 . . 24 15 2 3 . . . . . . 2 . . 9 5 Allies Corrupted 13 | . . . . . . . . . . . . . . . . . . . . . 3 . . . 9 . . 1 . . . . Allies Melted 1 | . . . . . . . . . . . . . . . . . . . . . . . . . . 1 . . . . . . Intel | -11 -10 -10 -10 -9 -8 -7 -7 -7 -6 -6 -6 -6 -6 -5 -5 -5 -5 -5 -5 -5 -5 -4 -4 -4 -4 -3 -3 -3 -2 -2 -2 -1 ------- Run | Scr Mat Min Exi Min Mat Fac Low Dat Pro Fac Low Low Zio Pro Fac Was Fac Ext Cet Arc Hub Fac Upp Upp War Pro Res Tes Res Qua Sec Acc Robot Analysis Total 10 | . . . . . . . . . . . . . . . 3 . . . . . 1 1 . . . . . 1 1 1 2 . Derelict Logs Recovered 14 | . . 2 . 1 . . 1 . 1 . . 2 1 2 . . . . . . . . 3 1 . . . . . . . . Drone Launches . | . . . . . . . . . . . . . . . . . . . . . . . . . . . . . . . . . Drone Recoveries . | . . . . . . . . . . . . . . . . . . . . . . . . . . . . . . . . . Exploration | -11 -10 -10 -10 -9 -8 -7 -7 -7 -6 -6 -6 -6 -6 -5 -5 -5 -5 -5 -5 -5 -5 -4 -4 -4 -4 -3 -3 -3 -2 -2 -2 -1 ------------- Run | Scr Mat Min Exi Min Mat Fac Low Dat Pro Fac Low Low Zio Pro Fac Was Fac Ext Cet Arc Hub Fac Upp Upp War Pro Res Tes Res Qua Sec Acc Turns Passed 17178 | 17 511 186 79 321 944 671 172 28 433 1338 218 176 314 476 830 29 788 703 374 101 349 901 451 375 355 590 1261 1008 473 1079 1154 473 Spaces Moved 32779 | 33 565 368 156 595 1300 1231 276 78 869 2932 797 544 557 920 1668 105 1466 1188 366 193 728 2125 1044 582 937 1061 2903 1444 606 1643 1954 1545 Core 448 | 33 149 . . . . . . . . . . . . 1 85 . 177 . . . . . . . . . . . . . 3 . Treads . | . . . . . . . . . . . . . . . . . . . . . . . . . . . . . . . . . Legs . | . . . . . . . . . . . . . . . . . . . . . . . . . . . . . . . . . Wheels . | . . . . . . . . . . . . . . . . . . . . . . . . . . . . . . . . . Hover . | . . . . . . . . . . . . . . . . . . . . . . . . . . . . . . . . . Flight 32331 | . 416 368 156 595 1300 1231 276 78 869 2932 797 544 557 919 1583 105 1289 1188 366 193 728 2125 1044 582 937 1061 2903 1444 606 1643 1951 1545 Fastest Speed 17 | 50 40 40 40 40 32 32 32 32 32 22 22 22 22 22 22 22 22 22 22 22 22 22 27 27 27 27 29 26 26 26 26 17 Average Speed 28 | 50 42 40 40 40 33 32 32 32 32 26 22 22 22 22 25 22 31 22 22 22 22 24 27 27 28 28 31 31 38 34 31 17 Slowest Speed 110 | 50 50 40 40 40 40 100 32 32 32 99 22 22 22 100 100 22 100 22 22 22 22 27 27 27 29 29 32 32 99 99 105 110 Overloaded Moves 260 | . . . . . . . . . . 6 . . . . . . . . . . . . . . . 10 . 24 2 66 152 . Propulsion Burnouts . | . . . . . . . . . . . . . . . . . . . . . . . . . . . . . . . . . Robots Hopped 315 | . 10 3 . 9 10 13 . . . 38 5 1 . . 21 . 17 26 . 8 9 5 . . 2 2 32 20 3 19 20 42 Cave-ins Triggered 4 | . . . . . . . . . . . . . . . . . . 1 1 . . . . . . . . . . 2 . . Teleports 1 | . . . . . . . . . . . . . . . . . . . . . . . . . . . . . . . 1 . Exploration Rate (%) 70 | 4 91 76 53 88 92 43 52 65 92 62 81 67 78 83 47 75 36 92 86 100 73 35 96 68 93 96 63 85 20 97 90 47 Regions Visited 32 Branch Regions 21 Pre-discovered Areas 8 | . . 2 . . . . . 1 . . . . 1 1 . . . . . . . . 1 1 1 . . . . . . . Known Exits Taken 15 | . 1 . . . 1 1 . . . 1 . . . 1 . . 1 1 1 . 1 1 . . . 1 1 1 1 . 1 . Unknown Exits Taken 15 | 1 . 1 1 1 . . 1 1 1 . 1 1 1 . . . . . . 1 . . 1 1 1 . . . . 1 . . Scrap Searched 34 | . . 3 . 2 . . 2 . 5 . 3 3 4 2 . . . . . . . . 5 3 . 2 . . . . . . Spaces Dug 45 | . . . . . . . . . . . . . . . . . . . . . . 1 . . 1 . 7 2 . 3 20 11 Terrain Destroyed 547 | . . . . 3 6 . . . . 52 . . . . . . 3 13 9 1 174 7 18 10 2 24 25 27 39 20 59 55 Melee . | . . . . . . . . . . . . . . . . . . . . . . . . . . . . . . . . . Projectile 194 | . . . . . . . . . . 7 . . . . . . 3 13 9 1 22 7 18 10 2 24 25 7 1 9 22 14 AOE 353 | . . . . 3 6 . . . . 45 . . . . . . . . . . 152 . . . . . . 20 38 11 37 41 Actions | -11 -10 -10 -10 -9 -8 -7 -7 -7 -6 -6 -6 -6 -6 -5 -5 -5 -5 -5 -5 -5 -5 -4 -4 -4 -4 -3 -3 -3 -2 -2 -2 -1 --------- Run | Scr Mat Min Exi Min Mat Fac Low Dat Pro Fac Low Low Zio Pro Fac Was Fac Ext Cet Arc Hub Fac Upp Upp War Pro Res Tes Res Qua Sec Acc Total 38302 | 32 724 398 171 657 1632 1418 358 80 984 3316 823 574 743 1136 1950 107 1695 1512 604 236 846 2420 1167 763 1016 1250 3102 1866 770 2073 2269 1610 Wait 3069 | . 26 29 16 55 108 106 83 3 50 253 14 16 181 132 211 1 194 182 161 42 71 210 78 149 19 104 49 244 17 185 75 5 Move 32146 | 32 544 361 155 577 1280 1205 275 77 868 2857 786 541 556 919 1627 104 1431 1143 365 176 709 2114 1043 581 933 1056 2839 1404 600 1604 1914 1470 Hop 286 | . 10 3 . 8 9 12 . . . 36 5 1 . . 20 . 17 18 . 8 9 5 . . 1 2 31 19 2 19 19 32 Pick Up 26 | . . . . . . 1 . . . 5 . . . 2 1 . . . . . . 2 1 . 1 . . 1 . 11 . 1 Fast Attach 192 | . 6 . . 2 19 8 . . 1 16 . . 1 1 7 . 7 . 3 . . 7 . 2 14 . 14 21 4 20 21 18 Attach 31 | . . . . . 1 . . . . 2 . . . 2 2 . . . . . . 1 . . 2 . . 3 3 15 . . Detach 29 | . . . . . 2 . . . . 2 . . . 1 3 . . . . . . 1 . . 2 . . 3 3 11 . 1 Swap 40 | . . . . . 2 3 . . . 4 . 1 . 1 . 1 1 3 2 . 2 3 1 . 3 3 7 3 . . . . Drop 183 | . 1 . . . 15 9 . . . 17 . 1 3 2 7 . 4 . 3 . . 9 1 2 15 . 18 23 4 29 15 5 Fire 1402 | . 97 5 . 10 129 50 . . 39 87 6 14 2 25 43 1 29 50 31 4 37 47 25 20 6 51 104 85 107 92 145 61 Melee . | . . . . . . . . . . . . . . . . . . . . . . . . . . . . . . . . . Ram 2 | . 2 . . . . . . . . . . . . . . . . . . . . . . . . . . . . . . . Kick . | . . . . . . . . . . . . . . . . . . . . . . . . . . . . . . . . . Crush . | . . . . . . . . . . . . . . . . . . . . . . . . . . . . . . . . . Escape Stasis 47 | . . . . . . . . . . . . . . . . . . . . . . . . . . . . 18 . 28 . 1 Rewire 157 | . . . . . . . . . . 12 . . . 18 . . . 78 . . . . 2 . 20 12 . 3 . . 12 . Trap . | . . . . . . . . . . . . . . . . . . . . . . . . . . . . . . . . . Miscellaneous 692 | . 38 . . 5 67 24 . . 26 25 12 . . 33 29 . 12 38 39 6 18 21 16 9 . 22 40 39 30 59 68 16 Route ------- -11/Scrapyard -10/Materials (discovered 4 exits: *Mat x3 / *Min) -10/Mines (discovered 3 exits: *Mat x2 / *Exi) -10/Exiles (discovered 2 exits: [*Min x2]) -9/Mines (discovered 2 exits: *Mat x2) -8/Materials (discovered 3 exits: *Fac x3) -7/Factory (discovered 4 exits: *Fac / Sto / *Low x2) -7/Lower Caves (discovered 2 exits: [*Low] / *Dat) -7/Data Miner -6/Proximity Caves -6/Factory (discovered 5 exits: *Fac x3 / *Low x2) -6/Lower Caves -6/Lower Caves (discovered 2 exits: *Fac / *Zio) -6/Zion -5/Proximity Caves -5/Factory (discovered 8 exits: *Fac x4 / *Upp x2 / *Ext x2) -5/Waste -5/Factory (discovered 8 exits: *Fac x4 / *Upp x2 / *Ext x2) -5/Extension (discovered 3 exits: *Fac x2 / *Cet) -5/Cetus (discovered 3 exits: *Fac x2 / *Arc) -5/Archives (discovered 3 exits: *Fac / *Hub x2) -5/Hub_04(d) (discovered 4 exits: *Fac x4) -4/Factory (discovered 6 exits: *Res x4 / *Upp x2) -4/Upper Caves -4/Upper Caves -4/Warlord -3/Proximity Caves -3/Research (discovered 6 exits: *Res x3 / Arm / *Tes x2) -3/Testing -2/Research (discovered 2 exits: *Qua x2) -2/Quarantine (discovered 2 exits: *Acc / *Sec) -2/Section 7 -1/Access To Epsilon Eridani History --------- Turn | Location | Event 9 | -11/Scrapyard | Discovered new exit (range 16) 18 | -11/Scrapyard | Entered Materials 41 | -10/Materials | Upgraded with Utility slot (x1) 42 | -10/Materials | Discovered new exit (range 14) 153 | -10/Materials | Discovered new exit (range 18) 153 | -10/Materials | Identified exit to Mines 344 | -10/Materials | Build established: Hacker-Mutant 355 | -10/Materials | Reached level 2 398 | -10/Materials | Discovered new exit (range 4) 455 | -10/Materials | Identified exit to Materials 529 | -10/Materials | Entered Mines 529 | -10/Mines | Accompanied by 1 ally 577 | -10/Mines | Discovered exit to Materials (range 10) 586 | -10/Mines | Assembled infested the area 591 | -10/Mines | Assisted by a Guerilla fighting off Assembled 610 | -10/Mines | Learned location of Storage (-7) 628 | -10/Mines | Deemed a non-threat by the Exiles lab entrance 628 | -10/Mines | Discovered new exit (range 5) 682 | -10/Mines | Discovered exit to Materials (range 5) 715 | -10/Mines | Entered Exiles 715 | -10/Exiles | Accompanied by 1 ally 726 | -10/Exiles | Met 8R-AWN 728 | -10/Exiles | Discovered new exit (range 14) 742 | -10/Exiles | Met EX-HEX 753 | -10/Exiles | Met EX-BIN 759 | -10/Exiles | Met EX-DEC 773 | -10/Exiles | Discovered new exit (range 14) 794 | -10/Exiles | Entered Mines 794 | -9/Mines | Accompanied by 1 ally 796 | -9/Mines | Met a Derelict bent on vengeance 796 | -9/Mines | Reached level 3 859 | -9/Mines | Assisted by bots powering up and referring to "LRC-V3" 898 | -9/Mines | Discovered new exit (range 4) 931 | -9/Mines | Discovered new exit (range 11) 957 | -9/Mines | Learned location of 1 exit from Materials 1115 | -9/Mines | Entered Materials 1115 | -8/Materials | Accompanied by 4 allies 1116 | -8/Materials | Identified exit to Factory 1117 | -8/Materials | Reached level 4 1121 | -8/Materials | Upgraded with Weapon slot (x1) 1197 | -8/Materials | Reached level 5 1307 | -8/Materials | Reached level 6 1321 | -8/Materials | Upgraded with Propulsion slot (x1) 1533 | -8/Materials | Reached level 7 1535 | -8/Materials | Upgraded with Utility slot (x1) 1535 | -8/Materials | Upgraded with Weapon slot (x1) 1616 | -8/Materials | Build established: Hacker-Sprinter 1634 | -8/Materials | Central database locked down 1897 | -8/Materials | Reached level 8 1925 | -8/Materials | Core integrity fell below 50% 1934 | -8/Materials | Build established: Hacker-Scout 2022 | -8/Materials | Repaired Broken Adv. Beam Rifle 2053 | -8/Materials | Repaired Broken Prc. Beam Rifle 2059 | -8/Materials | Entered Factory 2061 | -7/Factory | Reached level 9 2093 | -7/Factory | Discovered new exit (range 16) 2300 | -7/Factory | Discovered new exit (range 18) 2312 | -7/Factory | Core integrity fell below 50% 2506 | -7/Factory | Garrison activated, responded to threat 2596 | -7/Factory | Reached level 10 2677 | -7/Factory | Upgraded with Power slot (x1) 2680 | -7/Factory | Discovered new exit (range 18) 2699 | -7/Factory | Identified exit to Storage 2699 | -7/Factory | Identified exit to Lower Caves 2730 | -7/Factory | Entered Lower Caves 2747 | -7/Lower Caves | Learned Factory security intel 2775 | -7/Lower Caves | A Commander dispatched an escort 2779 | -7/Lower Caves | Learned Factory trap positions 2779 | -7/Lower Caves | Learned Factory stockpile data 2779 | -7/Lower Caves | Learned Extension security intel 2779 | -7/Lower Caves | Learned Armory security intel 2779 | -7/Lower Caves | Learned Research terminal intel 2779 | -7/Lower Caves | Learned Armory garrison access intel 2808 | -7/Lower Caves | Discovered new exit (range 15) 2815 | -7/Lower Caves | A Derelict revealed a hidden shortcut to meet someone special 2902 | -7/Lower Caves | Entered Data Miner 2902 | -7/Data Miner | Accompanied by 2 allies 2902 | -7/Data Miner | Discovered new exit (range 6) 2903 | -7/Data Miner | Commander's escort returned to base 2903 | -7/Data Miner | Commander's escort returned to base 2904 | -7/Data Miner | Reached level 11 2908 | -7/Data Miner | Met Data Miner 2916 | -7/Data Miner | Learned location of Section 7 (-2) 2916 | -7/Data Miner | Acquired the access code to Warlord's prototype stash 2920 | -7/Data Miner | Received God Mode back door access code from Data Miner 2930 | -7/Data Miner | Entered Proximity Caves 2972 | -6/Proximity Caves | Escorted by Enhanced Grunt 3032 | -6/Proximity Caves | Attacked by a faux Warlord 3063 | -6/Proximity Caves | Upgraded with Utility slot (x1) 3080 | -6/Proximity Caves | Learned 8 Factory zone layouts 3116 | -6/Proximity Caves | Reached level 12 3158 | -6/Proximity Caves | Discovered new exit (range 14) 3363 | -6/Proximity Caves | Entered Factory 3363 | -6/Factory | Accompanied by 1 ally 3364 | -6/Factory | Identified exit to Factory 3364 | -6/Factory | Identified exit to Lower Caves 3365 | -6/Factory | Loaded intel: 104 trap records 3365 | -6/Factory | Reached level 13 3373 | -6/Factory | Upgraded with Utility slot (x2) 3398 | -6/Factory | Reached level 14 3429 | -6/Factory | Found Prototype Device 3429 | -6/Factory | Identified Exp. Thermal Shield 3689 | -6/Factory | Reached level 15 3748 | -6/Factory | Core integrity fell below 50% 3858 | -6/Factory | Fabricated Exp. Cesium-ion Thruster (x1) 3877 | -6/Factory | Discovered exit to Factory (range 5) 4152 | -6/Factory | Reached level 16 4155 | -6/Factory | Upgraded with Utility slot (x1) 4202 | -6/Factory | Fabricated Exp. Cesium-ion Thruster (x1) 4215 | -6/Factory | Discovered exit to Factory (range 15) 4298 | -6/Factory | Found Prototype Processor 4298 | -6/Factory | Identified Exp. Targeting Computer 4306 | -6/Factory | Spotted B-75 Beast 4326 | -6/Factory | Central database locked down 4346 | -6/Factory | Incoming investigation squad redirected 4506 | -6/Factory | Repaired Broken Imp. Shield Generator 4646 | -6/Factory | Reached level 17 4701 | -6/Factory | Entered Lower Caves 4708 | -6/Lower Caves | Spotted B-75 Beast 4739 | -6/Lower Caves | Destroyed B-75 Beast 4870 | -6/Lower Caves | Discovered new exit (range 6) 4919 | -6/Lower Caves | Entered another Lower Caves area 4922 | -6/Lower Caves | Learned Factory stockpile data 4937 | -6/Lower Caves | Discovered exit to Factory (range 18) 4947 | -6/Lower Caves | Attracted the attention of an 0b10 outpost 4975 | -6/Lower Caves | Spotted B-75 Beast 4996 | -6/Lower Caves | Attracted the attention of an 0b10 checkpoint 5042 | -6/Lower Caves | Discovered new exit (range 13) 5095 | -6/Lower Caves | Entered Zion 5097 | -6/Zion | Reached level 18 5119 | -6/Zion | Upgraded with Weapon slot (x1) 5119 | -6/Zion | Found Prototype Energy Gun 5119 | -6/Zion | Identified Storm Laser 5137 | -6/Zion | Gained Derelict followers 5178 | -6/Zion | Learned Factory terminal intel 5225 | -6/Zion | Discovered new exit (range 12) 5409 | -6/Zion | Entered Proximity Caves 5409 | -5/Proximity Caves | Accompanied by 3 allies 5444 | -5/Proximity Caves | Attracted the attention of an 0b10 checkpoint 5445 | -5/Proximity Caves | Reached level 19 5469 | -5/Proximity Caves | Upgraded with Utility slot (x1) 5587 | -5/Proximity Caves | Destroyed 7 combat bots 5699 | -5/Proximity Caves | Reached level 20 5708 | -5/Proximity Caves | Upgraded with Utility slot (x1) 5752 | -5/Proximity Caves | Discovered exit to Factory (range 15) 5763 | -5/Proximity Caves | Learned Factory terminal intel 5830 | -5/Proximity Caves | Learned location of Warlord (-4) 5841 | -5/Proximity Caves | Spotted B-75 Beast 5859 | -5/Proximity Caves | Destroyed B-75 Beast 5885 | -5/Proximity Caves | Entered Factory 5885 | -5/Factory | Accompanied by 2 allies 5886 | -5/Factory | Identified exit to Upper Caves 5887 | -5/Factory | Reached level 21 5888 | -5/Factory | Loaded intel: 22 terminal locations 5977 | -5/Factory | Identified exit to Extension 6005 | -5/Factory | Incoming investigation squad redirected 6011 | -5/Factory | Incoming investigation squad redirected 6150 | -5/Factory | Identified exit to Factory 6169 | -5/Factory | Incoming investigation squad redirected 6260 | -5/Factory | Reached level 22 6264 | -5/Factory | Upgraded with Utility slot (x1) 6349 | -5/Factory | Garrison activated, responded to threat 6715 | -5/Factory | Sucked down chute 6715 | -5/Factory | Entered Waste 6718 | -5/Waste | Spotted C-40 Crusher 6719 | -5/Waste | Spotted C-40 Crusher 6723 | -5/Waste | Spotted C-40 Crusher 6728 | -5/Waste | Spotted C-40 Crusher 6730 | -5/Waste | EMP discharged 6730 | -5/Waste | System corruption reached 10% 6733 | -5/Waste | Spotted C-40 Crusher 6741 | -5/Waste | Spotted C-40 Crusher 6741 | -5/Waste | Discovered new exit (range 12) 6744 | -5/Waste | Entered Factory 6745 | -5/Factory | Loaded intel: 22 terminal locations 6810 | -5/Factory | Discovered exit to Upper Caves (range 7) 6889 | -5/Factory | Discovered exit to Extension (range 20) 6901 | -5/Factory | Discovered exit to Factory (range 11) 7369 | -5/Factory | Fabricated Cld. Deuterium Engine? 7411 | -5/Factory | Reached level 23 7458 | -5/Factory | Local fabrication network quarantined 7461 | -5/Factory | Central database locked down 7486 | -5/Factory | Incoming investigation squad redirected 7532 | -5/Factory | Entered Extension 7532 | -5/Extension | Accompanied by 2 allies 7553 | -5/Extension | Rescued a captive Derelict 7554 | -5/Extension | Rescued a captive Derelict 7558 | -5/Extension | Identified exit to Cetus 7659 | -5/Extension | Rescued A7 7678 | -5/Extension | Incoming investigation squad redirected 7684 | -5/Extension | Spotted B-75 Beast 7745 | -5/Extension | Disrupted transfer network 7805 | -5/Extension | Destroyed B-75 Beast 7832 | -5/Extension | First assault squad dispatched 7862 | -5/Extension | Incoming assault squad redirected 7862 | -5/Extension | Spotted B-75 Beast 7875 | -5/Extension | Allies destroyed B-75 Beast 7957 | -5/Extension | Crushed by falling debris 7964 | -5/Extension | Reached level 24 8039 | -5/Extension | Rescued a captive Derelict 8041 | -5/Extension | Rescued a captive Derelict 8095 | -5/Extension | Rescued a captive Derelict 8096 | -5/Extension | Rescued a captive Derelict 8150 | -5/Extension | Incoming assault squad redirected 8235 | -5/Extension | Entered Cetus 8235 | -5/Cetus | Accompanied by 18 allies 8238 | -5/Cetus | Spotted Cetus Guard 8238 | -5/Cetus | Spotted Cetus Guard 8238 | -5/Cetus | Spotted Cetus Guard 8238 | -5/Cetus | Spotted Cetus Guard 8240 | -5/Cetus | Acquired a Cetus Manufacturing Module code from A7 8250 | -5/Cetus | Destroyed Cetus Guard 8261 | -5/Cetus | Destroyed Cetus Guard 8261 | -5/Cetus | Allies destroyed Cetus Guard 8263 | -5/Cetus | Allies destroyed Cetus Guard 8280 | -5/Cetus | Identified exit to Archives 8293 | -5/Cetus | Escorted A7 to Cetus Mainframe 8296 | -5/Cetus | Extracted ID and sensor layout for unrecognized location from A7's data core 8331 | -5/Cetus | Started Cetus Manufacturing Module 8345 | -5/Cetus | Spotted Cetus Guard 8345 | -5/Cetus | Spotted Cetus Guard 8350 | -5/Cetus | Destroyed Cetus Guard 8351 | -5/Cetus | Spotted Cetus Guard 8356 | -5/Cetus | Manufactured an Enhanced Grunt 8361 | -5/Cetus | Spotted Cetus Guard 8370 | -5/Cetus | Destroyed Cetus Guard 8381 | -5/Cetus | Manufactured an Enhanced Grunt 8385 | -5/Cetus | Destroyed Cetus Guard 8390 | -5/Cetus | Destroyed Cetus Guard 8406 | -5/Cetus | Manufactured an Enhanced Grunt 8431 | -5/Cetus | Manufactured an Enhanced Grunt 8456 | -5/Cetus | Manufactured an Enhanced Grunt 8540 | -5/Cetus | Crushed by falling debris 8540 | -5/Cetus | Core integrity fell below 50% 8609 | -5/Cetus | Entered Archives 8609 | -5/Archives | Accompanied by 9 allies 8623 | -5/Archives | Discovered new exit (range 19) 8624 | -5/Archives | Unable to access archive contents 8627 | -5/Archives | Discovered exit to Factory (range 17) 8628 | -5/Archives | Unable to access archive contents 8658 | -5/Archives | Discovered new exit (range 19) 8710 | -5/Archives | Entered Hub_04(d) 8710 | -5/Hub_04(d) | Accompanied by 9 allies 8712 | -5/Hub_04(d) | Reached level 25 8732 | -5/Hub_04(d) | Discovered exit to Factory (range 12) 8798 | -5/Hub_04(d) | Garrison activated, responded to threat 8799 | -5/Hub_04(d) | Network Hub disabled 8799 | -5/Hub_04(d) | Spotted Lightning 8799 | -5/Hub_04(d) | Spotted Lightning 8799 | -5/Hub_04(d) | Spotted Lightning 8799 | -5/Hub_04(d) | Spotted Lightning 8799 | -5/Hub_04(d) | Spotted Lightning 8799 | -5/Hub_04(d) | Spotted Lightning 8799 | -5/Hub_04(d) | Spotted Lightning 8799 | -5/Hub_04(d) | Spotted Lightning 8799 | -5/Hub_04(d) | Spotted Lightning 8800 | -5/Hub_04(d) | Spotted Lightning 8801 | -5/Hub_04(d) | Spotted Lightning 8801 | -5/Hub_04(d) | Spotted Lightning 8868 | -5/Hub_04(d) | Disrupted transfer network 8982 | -5/Hub_04(d) | Destroyed 7 combat bots 9008 | -5/Hub_04(d) | Network Hub disabled 9051 | -5/Hub_04(d) | Destroyed Lightning 9057 | -5/Hub_04(d) | Found Exp. Targeting Computer 9059 | -5/Hub_04(d) | Entered Factory 9132 | -4/Factory | Core integrity fell below 50% 9172 | -4/Factory | Identified exit to Upper Caves 9172 | -4/Factory | Identified exit to Research 9195 | -4/Factory | Reached level 26 9278 | -4/Factory | Central database locked down 9357 | -4/Factory | Fabricated Imp. Phase Shifter (x1) 9387 | -4/Factory | Fabricated Reaction Control System (x1) 9437 | -4/Factory | Fabricated Cld. Fission Core (x1) 9482 | -4/Factory | Fabricated Cld. Fission Core (x1) 9747 | -4/Factory | Spotted B-86 Titan 9760 | -4/Factory | Local fabrication network quarantined 9911 | -4/Factory | Repaired Broken Imp. System Backup Module 9960 | -4/Factory | Entered Upper Caves 9960 | -4/Upper Caves | Accompanied by 3 allies 10061 | -4/Upper Caves | Learned location of Testing (-3) 10137 | -4/Upper Caves | Attracted the attention of an 0b10 outpost 10194 | -4/Upper Caves | Destroyed 7 combat bots 10201 | -4/Upper Caves | Learned 4 Research zone layouts 10298 | -4/Upper Caves | Discovered new exit (range 19) 10411 | -4/Upper Caves | Entered another Upper Caves area 10411 | -4/Upper Caves | Accompanied by 5 allies 10564 | -4/Upper Caves | Reached level 27 10567 | -4/Upper Caves | Upgraded with Utility slot (x1) 10625 | -4/Upper Caves | Discovered new exit (range 14) 10786 | -4/Upper Caves | Entered Warlord 10786 | -4/Warlord | Accompanied by 4 allies 10792 | -4/Warlord | Discovered new exit (range 19) 10795 | -4/Warlord | System corruption cleaned by Quarantine Array 10825 | -4/Warlord | System corruption cleaned by Quarantine Array 10903 | -4/Warlord | Learned Research security intel 10903 | -4/Warlord | Learned Quarantine security intel 10903 | -4/Warlord | Learned Research recycling unit intel 10903 | -4/Warlord | Learned 4 Research zone layouts 10903 | -4/Warlord | Learned 4 Testing zone layouts 10903 | -4/Warlord | Learned location of Command (-1) 10903 | -4/Warlord | Learned Research emergency access door positions 10903 | -4/Warlord | Learned Research stockpile data 10903 | -4/Warlord | Learned Quarantine stockpile data 10912 | -4/Warlord | Met Warlord 10915 | -4/Warlord | Opened Warlord's prototype stash 10917 | -4/Warlord | Found Exp. Targeting Computer 10931 | -4/Warlord | Found Prototype Device 10931 | -4/Warlord | Identified Exp. Focal Shield 10937 | -4/Warlord | Warlord's base attacked by MAIN.C 10939 | -4/Warlord | Found Prototype Hackware 10939 | -4/Warlord | Identified System Mapper 11022 | -4/Warlord | Found Prototype Energy Cannon 11022 | -4/Warlord | Identified Vortex Cannon 11090 | -4/Warlord | Opened side exit 11141 | -4/Warlord | Entered Proximity Caves 11275 | -3/Proximity Caves | Attracted the attention of an 0b10 outpost 11294 | -3/Proximity Caves | Reached level 28 11325 | -3/Proximity Caves | Destroyed 7 combat bots 11407 | -3/Proximity Caves | Attracted the attention of an 0b10 checkpoint 11643 | -3/Proximity Caves | Discovered exit to Research (range 9) 11731 | -3/Proximity Caves | Entered Research 11732 | -3/Research | Identified exit to Armory 11733 | -3/Research | Identified exit to Research 11737 | -3/Research | Loaded intel: 18 terminal locations 11738 | -3/Research | Loaded intel: 4 recycling unit locations 11748 | -3/Research | Identified exit to Testing 11748 | -3/Research | Reached level 29 11931 | -3/Research | Revision forces began assault on 0b10 11932 | -3/Research | Spotted B-86 Titan 12087 | -3/Research | Spotted B-86 Titan 12169 | -3/Research | Found Prototype Device 12169 | -3/Research | Identified Exp. Thermal Shield 12300 | -3/Research | Central database locked down 12371 | -3/Research | Destroyed 7 combat bots 12429 | -3/Research | Destroyed B-86 Titan 12431 | -3/Research | Research terminal network offline 12437 | -3/Research | Fabricated Adv. Reaction Control System? 12465 | -3/Research | Fabricated Adv. Weapon Cycler? 12560 | -3/Research | Spotted B-86 Titan 12563 | -3/Research | Destroyed B-86 Titan 12581 | -3/Research | Found Prototype Device 12581 | -3/Research | Identified EM Dispersion Field 12709 | -3/Research | Spotted Striker 12709 | -3/Research | Destroyed Striker 12752 | -3/Research | Destroyed 7 combat bots 12992 | -3/Research | Entered Testing 12994 | -3/Testing | Reached level 30 12994 | -3/Testing | Upgraded with Utility slot (x1) 12997 | -3/Testing | Spotted PD-UE2XJQ75SK 13064 | -3/Testing | Spotted Alpha 7 13064 | -3/Testing | Spotted 7D-SIL(K) 13064 | -3/Testing | Spotted FI-IUN(K) 13064 | -3/Testing | Spotted JU-UTY(K) 13160 | -3/Testing | Found Prototype Device 13160 | -3/Testing | Identified Exp. Hardlight Generator 13211 | -3/Testing | Spotted Striker 13233 | -3/Testing | Found Prototype Energy Cannon 13233 | -3/Testing | Identified Hpw. Disruptor Cannon 13257 | -3/Testing | Destroyed Alpha 7 13340 | -3/Testing | Found Prototype Processor 13340 | -3/Testing | Identified Exp. Signal Interpreter 13450 | -3/Testing | Found Prototype Energy Cannon 13450 | -3/Testing | Identified Disintegrator 13591 | -3/Testing | Fabricated Adv. Phase Shifter (x1) 13636 | -3/Testing | Fabricated Enh. Force Rifle (x1) 13678 | -3/Testing | Fabricated Enh. Force Rifle (x1) 13679 | -3/Testing | Local fabrication network quarantined 13759 | -3/Testing | Destroyed FI-IUN(K) 13809 | -3/Testing | Scanned by Researcher 13826 | -3/Testing | Found Prototype Energy Cannon 13826 | -3/Testing | Identified Potential Cannon 14000 | -3/Testing | Entered Research 14000 | -2/Research | Warlord forces began assault on 0b10 14002 | -2/Research | Reached level 31 14051 | -2/Research | Discovered new exit (range 21) 14094 | -2/Research | Found Prototype Processor 14094 | -2/Research | Identified Spectral Analyzer 14110 | -2/Research | Research machine network offline 14138 | -2/Research | Met up with Warlord 14216 | -2/Research | Identified exit to Quarantine 14278 | -2/Research | Spotted B-90 Cyclops 14314 | -2/Research | Borebot progress halted 14317 | -2/Research | Borebot progress halted 14330 | -2/Research | Spotted Executioner 14332 | -2/Research | Destroyed Executioner 14348 | -2/Research | Reached level 32 14349 | -2/Research | Upgraded with Utility slot (x1) 14358 | -2/Research | Spotted Striker 14394 | -2/Research | Borebot progress halted 14441 | -2/Research | Spotted Striker 14460 | -2/Research | Destroyed 16 combat bots 14467 | -2/Research | Discovered exit to Quarantine (range 19) 14473 | -2/Research | Entered Quarantine 14493 | -2/Quarantine | Crushed by falling debris 14501 | -2/Quarantine | Found Alien Slashing Weapon 14501 | -2/Quarantine | Identified Sigix Broadsword 14573 | -2/Quarantine | Core integrity fell below 50% 14618 | -2/Quarantine | Core integrity fell below 20% 14679 | -2/Quarantine | Spotted Alpha 7 14698 | -2/Quarantine | Destroyed Alpha 7 14707 | -2/Quarantine | Identified exit to Access 14711 | -2/Quarantine | Found Alien Launcher 14711 | -2/Quarantine | Identified Sigix Terminator 14748 | -2/Quarantine | Found Alien Artifact 14756 | -2/Quarantine | Identified Subatomic Replicator 14801 | -2/Quarantine | Garrison activated, responded to threat 14804 | -2/Quarantine | Crushed by falling debris 14883 | -2/Quarantine | Found Alien Energy Cannon 14883 | -2/Quarantine | Identified Core Cannon 14994 | -2/Quarantine | Found Alien Artifact 15093 | -2/Quarantine | Identified Stasis Generator 15137 | -2/Quarantine | Found Sigix Corpse 15211 | -2/Quarantine | Found Prototype Device 15211 | -2/Quarantine | Identified Exp. Shock Absorption System 15252 | -2/Quarantine | Found Alien Artifact 15262 | -2/Quarantine | Found Alien Artifact 15272 | -2/Quarantine | Identified Matter Drive 15283 | -2/Quarantine | Found Alien Artifact 15311 | -2/Quarantine | Identified Hpw. Transdimensional Reconstructor 15311 | -2/Quarantine | Identified Core Reset Matrix 15354 | -2/Quarantine | Central database locked down 15355 | -2/Quarantine | Met incapacitated Sigix Warrior 15355 | -2/Quarantine | Lockdown squad dispatched 15355 | -2/Quarantine | Reached level 33 15356 | -2/Quarantine | Acquired the access code to the Sigix quarantine chamber 15357 | -2/Quarantine | Unlocked Sigix quarantine chamber 15387 | -2/Quarantine | Found Alien Artifact 15387 | -2/Quarantine | Identified Dimensional Node Initializer 15387 | -2/Quarantine | Initialized slip node 15525 | -2/Quarantine | Spotted Fortress 15549 | -2/Quarantine | Discovered new exit (range 6) 15552 | -2/Quarantine | Entered Section 7 15636 | -2/Section 7 | Spotted B-90 Cyclops 15763 | -2/Section 7 | Garrison activated, responded to threat 15913 | -2/Section 7 | Found Alien Artifact 15913 | -2/Section 7 | Identified Integrity Redistributor 15913 | -2/Section 7 | Used Integrity Redistributor, redistributed integrity from core (-0) 15971 | -2/Section 7 | Spotted S7 Guard 15980 | -2/Section 7 | Found Alien Artifact 15980 | -2/Section 7 | Identified Integrated Singularity Reactor 15980 | -2/Section 7 | Installed Integrated Singularity Reactor, increased core energy generation (+2%) 16001 | -2/Section 7 | Spotted B-90 Cyclops 16076 | -2/Section 7 | Found Alien Artifact 16076 | -2/Section 7 | Identified Integrated Dissipator 16076 | -2/Section 7 | Installed Integrated Dissipator, increased core heat dissipation (+2%) 16208 | -2/Section 7 | Spotted Executioner 16230 | -2/Section 7 | Spotted Executioner 16233 | -2/Section 7 | Destroyed Executioner 16239 | -2/Section 7 | Destroyed Executioner 16260 | -2/Section 7 | Destroyed 7 combat bots 16271 | -2/Section 7 | Found Alien Artifact 16271 | -2/Section 7 | Identified Terrabomb 16271 | -2/Section 7 | Used Terrabomb 16281 | -2/Section 7 | Found Alien Artifact 16281 | -2/Section 7 | Identified Transdimensional Reconstructor 16281 | -2/Section 7 | Warped through subspace 16339 | -2/Section 7 | Spotted Striker 16339 | -2/Section 7 | Spotted Striker 16347 | -2/Section 7 | Spotted Executioner 16358 | -2/Section 7 | Reached level 34 16358 | -2/Section 7 | Activated Sigix Exoskeleton 16358 | -2/Section 7 | Unable to understand communications from Sigix Warrior 16375 | -2/Section 7 | Spotted B-99 Colossus 16391 | -2/Section 7 | Spotted Alpha 7 16406 | -2/Section 7 | Spotted Alpha 7 16436 | -2/Section 7 | Destroyed Alpha 7 16447 | -2/Section 7 | Destroyed Alpha 7 16467 | -2/Section 7 | Allies destroyed B-99 Colossus 16470 | -2/Section 7 | Found Prototype Processor 16470 | -2/Section 7 | Identified Exp. Target Analyzer 16585 | -2/Section 7 | Destroyed 14 combat bots 16695 | -2/Section 7 | Spotted Striker 16706 | -2/Section 7 | Spotted Striker 16706 | -2/Section 7 | Entered Access 16706 | -1/Access | Accompanied by 1 ally 16722 | -1/Access | Reached level 35 16781 | -1/Access | Found Enh. Force Lance 16853 | -1/Access | Spotted B-99 Colossus 16895 | -1/Access | Energy Cycler disabled 16981 | -1/Access | Spotted B-99 Colossus 17002 | -1/Access | Core integrity fell below 50% 17017 | -1/Access | Spotted Investigator 17042 | -1/Access | Destroyed Investigator 17108 | -1/Access | Core integrity fell below 20% 17131 | -1/Access | Discovered new exit (range 21) 17164 | -1/Access | Spotted Executioner 17177 | -1/Access | Destroyed 7 combat bots 17179 | *** | Escaped! Last Messages --------------- 17164_ C-30 ARC bursts open, deploying its payload. 17164_ G-73 Enforcer unfolds itself. 17164_ C-30 ARC bursts open, deploying its payload. 17164_ Executioner unfolds itself. 17164_ P-80 Master unfolds itself. 17164_ H-88 Terminator unfolds itself. 17164_ M-36 Artificer unfolds itself. 17165_ P-80 Master resets R-10 Processor, system corruption cleaned. 17165_ Penetrated by Slug. 17165_ R-10 Processor suffers critical hit. 17165_ R-10 Processor destroyed. 17165_ Slug penetrates Wall. 17166_ Acquired 110 matter. 17167_ Slug penetrates Y-72 Warden. 17167_ Slug penetrates Wall. 17167_ Penetrated by Slug. 17167_ Slug penetrates Wall. 17171_ Acquired Enh. Quantum Rifle. 17177_ The Access Shell folds into the floor. 17179_ ALERT: Heavy assault forces dispatched. Map ----- +----------------------------------------------------+ | # ? # ?#? # ? ??? ??#??? | | # #######? ? ?????? ????????? | | # ###??#????? ?????""?????#?##? | | ##/#+##########?#####????#??? ??????"????#?#??? | | ##### #??#??#??#?????????? ? ??#?#? | | % ##### #?###????? ????? ??? ??? ?????? | | ########### ##### ######??????????? ? ?????#???? | | + #########?###?????????????????#?#?##? | | # # #??#??? ???##???????????#??? | | " # # ##??#???????????????##??#??? | | """ # # ##?#?????????????????? ? ??? | | """ # # ? ??#?##????? ???? ??????????? | | " # # ####????????????? ?#???????? | | # # ? ##??#????????????????????? ? | | # + ? ####???????#??????#????????? | | # # #?#?#?#?????????????? ?????? | | ########### # ? ###??#?????????????? ????? | | ########## ##############?????????????#????????? | | ########## #############?#??##???#????#???????? | | !##%####### ####### ##########???#??#????? ?????? | | !/%!!*##### """T""" "????????? ????? ?? | | !####%##?##k """ """ ""???? ??????? ??? | | ####%##### "??? ??????????????# | | ####*##### "?"????? ? ?????? ?? | | ####%##### "" "??????????????????? | | ####"##### @" ""????????? ???????? | | ####"%##### "??????? ? ?? ????#? | | ####=|##### "??" ???? ????? ???? | | ####==##### """?????????#??????? | | ####!%##### "??"? ?????????????? | | ####!*##### ####### ##########?##??#?????#???? ?? | | ####=!##### #############??##?#?????#?#??#??????? | | #### =##### #?########?##?#?#???#????#??????????? | | ### #### #####?#######?#?????#???????#?#?????? | | #### #########??????#????##?##???????????? | | #??# #########?##?#??####????#???????????? | | ### ! # ## #########????##??#####?##?????? ????? | | ####[[##### ######?#??#?#???###??#??#????? ?????? | | ####=%##### ##############?#?#?#?##????#????????? | | #?##*!##### # #?#???##?#?#???????????? | | #### =##### # #?###??????#?#????? ??? | | # ##### # ##?#?#?##?#####????????? | | # ##### # ##?#??##?#?#????? ????? | | # ##### # [[[ ######???###?#?????#???? | | + # [[[ # ? ? #?#????#?? | | # + [ # ?? ?#??#????? ? | | # #####+## # ? ? ??????#???? | | # # ## # ? ##????#???? | | # # ## # "" ? ##????##??" | | #### # ## # "" #?###?#?? ? | +----------------------------------------------------+ Best States ------------- Heat Dissipation 87 Coolant Potential 120 Energy Generation 94 Energy Capacity 600 Matter Stores 300 Matter Capacity 300 Sight Range 19 Terrain Scan Range 24 Terrain Scan Density 410 Resistance: TH 30 Weapon Cycling 25 Phase Shifting 15 Evasion (%) 95 Targeting Accuracy 24 Target Analysis 12 Core Analysis 10 Armor Integrity Analysis 66 Recoil Reduction 6 Energy Filtering 50 Particle Charging 25 Offensive Hacking 49 Defensive Hacking 20 Item Schematics ----------------- Enh. Autogun | -8/Materials | Scanalyzed Adv. Beam Rifle | -8/Materials | Scanalyzed Core Analyzer | -7/Factory | Hacked Combat Drone Bay | -7/Data Miner | Free Lgt. Regenerative Plating | -7/Data Miner | Free Exp. Cesium-ion Thruster | -7/Data Miner | Free Exp. Sensor Array | -7/Data Miner | Free Exp. Terrain Scan Processor | -7/Data Miner | Free Tactical Coordination Suite | -7/Data Miner | Free Exp. Transmission Jammer | -7/Data Miner | Free Exp. ECM Suite | -7/Data Miner | Free Adv. Plasma Cannon | -6/Factory | Hacked Force Rifle | -6/Factory | Hacked Battle Cannon | -6/Zion | Free Enh. Flamer | -6/Zion | Free Phasing Sabre | -6/Zion | Free Cld. Deuterium Engine | -5/Factory | Hacked Enh. Force Rifle | -5/Factory | Hacked Cld. Cesium-ion Thruster | -5/Factory | Hacked Cld. Fission Core | -5/Factory | Hacked Imp. Phase Shifter | -5/Factory | Hacked Reaction Control System | -5/Factory | Hacked Adv. Weapon Cycler | -5/Hub_04(d) | Hacked Q-thruster | -5/Hub_04(d) | Hacked Cld. Nuclear Pulse Thruster | -4/Factory | Hacked Adv. Target Analyzer | -4/Factory | Hacked Adv. Armor Integrity Analyzer | -4/Factory | Hacked Adv. Core Analyzer | -4/Factory | Hacked Cld. Field Propulsion Drive | -4/Factory | Scanalyzed Imp. System Backup Module | -4/Factory | Scanalyzed Imp. Particle Charger | -4/Factory | Scanalyzed Imp. Coolant Injector | -4/Factory | Scanalyzed Com. HERF Cannon | -3/Research | Hacked Exp. Core Shielding | -3/Research | Hacked Cld. Antimatter Reactor | -3/Research | Hacked Exp. Coolant Injector | -3/Research | Scanalyzed Adv. Reaction Control System | -3/Research | Hacked Adv. Phase Shifter | -3/Testing | Hacked Exp. Core Analyzer | -2/Section 7 | Hacked Robot Schematics ------------------ S-27 Virus | -7/Data Miner | Free G-50 Soldier | -7/Data Miner | Free P-70 Sage | -7/Data Miner | Free I-36 Angel | -7/Data Miner | Free I-47 Archangel | -7/Data Miner | Free B-60 Warrior | -5/Extension | Hacked H-66 Slayer | -5/Hub_04(d) | Hacked S-43 Plague | -3/Research | Hacked G-67 Veteran | -2/Quarantine | Hacked Fabricated ------------ Exp. Cesium-ion Thruster | x1 | -6/Factory Exp. Cesium-ion Thruster | x1 | -6/Factory Cld. Deuterium Engine | x1 | -5/Factory Imp. Phase Shifter | x1 | -4/Factory Reaction Control System | x1 | -4/Factory Cld. Fission Core | x1 | -4/Factory Cld. Fission Core | x1 | -4/Factory Adv. Reaction Control System | x1 | -3/Research Adv. Weapon Cycler | x2 | -3/Research Adv. Phase Shifter | x1 | -3/Testing Enh. Force Rifle | x1 | -3/Testing Enh. Force Rifle | x1 | -3/Testing Alien Tech Used ----------------- Sigix Broadsword Sigix Terminator Core Cannon Matter Drive Dimensional Node Initializer Integrity Redistributor Integrated Singularity Reactor Integrated Dissipator Terrabomb Transdimensional Reconstructor Achievements -------------- Everyone Must Die Generalissimo Hard Hitter Max Potential Project G-00 Challenges ------------ None RPGLIKE | -11 -10 -10 -10 -9 -8 -7 -7 -7 -6 -6 -6 -6 -6 -5 -5 -5 -5 -5 -5 -5 -5 -4 -4 -4 -4 -3 -3 -3 -2 -2 -2 -1 --------- Run | Scr Mat Min Exi Min Mat Fac Low Dat Pro Fac Low Low Zio Pro Fac Was Fac Ext Cet Arc Hub Fac Upp Upp War Pro Res Tes Res Qua Sec Acc Levels Raised 34 | . 1 . . 1 5 2 . 1 1 5 . . 1 2 2 . 1 1 . . 1 1 . 1 . 1 1 1 2 1 1 1 XP Earned 55011 | 3000 2015 750 200 746 7342 3146 500 650 2561 6229 522 798 349 3495 2894 67 848 1746 923 216 668 1368 656 396 188 2026 1951 1221 2434 1314 1970 1822 XP Spent 50890 | . 4400 . . 1500 7280 2900 . . 1100 8310 . . 1100 4900 2900 . 1500 . 900 . . 1000 . 3200 . 1100 . 3500 3800 1200 . 300 Upgrades 68 | . 11 . . 2 18 5 . . 1 12 . . 1 2 1 . 2 . 1 . . 1 . 1 . 1 . 1 1 1 . 6 Power Slot 1 | . . . . . . 1 . . . . . . . . . . . . . . . . . . . . . . . . . . Propulsion Slot 1 | . . . . . 1 . . . . . . . . . . . . . . . . . . . . . . . . . . . Utility Slot 12 | . 1 . . . 1 . . . 1 3 . . . 2 1 . . . . . . . . 1 . . . 1 1 . . . Weapon Slot 3 | . . . . . 2 . . . . . . . 1 . . . . . . . . . . . . . . . . . . . Core Integrity 6 | . . . . . . . . . . . . . . . . . . . . . . . . . . . . . . . . 6 Heat Dissipation 7 | . . . . . 3 . . . . 4 . . . . . . . . . . . . . . . . . . . . . . Energy Generation 1 | . . . . . . . . . . 1 . . . . . . . . . . . . . . . . . . . . . . Mass Support 12 | . 2 . . . . 2 . . . 2 . . . . . . 2 . 1 . . 1 . . . 1 . . . 1 . . Inventory Capacity 3 | . . . . . 1 . . . . 2 . . . . . . . . . . . . . . . . . . . . . . Sight Range 3 | . . . . . 3 . . . . . . . . . . . . . . . . . . . . . . . . . . . Terrain Scan Density 4 | . . . . . 4 . . . . . . . . . . . . . . . . . . . . . . . . . . . Ranged Accuracy 8 | . 3 . . 2 3 . . . . . . . . . . . . . . . . . . . . . . . . . . . Hack Attack % 3 | . 2 . . . . 1 . . . . . . . . . . . . . . . . . . . . . . . . . . Hack Defense % 4 | . 3 . . . . 1 . . . . . . . . . . . . . . . . . . . . . . . . . . Protomatter Created 10483 | . 302 . . 51 815 180 . . 170 260 157 57 . 464 742 . 180 550 380 70 393 407 404 342 . 599 546 679 567 464 1383 321 Integrity Restored 13889 | . 789 . . 92 1352 540 . . 542 547 282 . . 673 505 . 261 741 764 116 379 440 252 136 . 428 721 747 581 1231 1423 347 Core 10859 | . 688 . . 71 1154 540 . . 379 481 282 . . 547 409 . 209 556 623 95 290 355 193 110 . 330 520 418 475 988 858 288 Parts 3030 | . 101 . . 21 198 . . . 163 66 . . . 126 96 . 52 185 141 21 89 85 59 26 . 98 201 329 106 243 565 59 Protomatter Decayed 12429 | . 55 195 . 6 445 . . . 108 133 63 . . 153 881 . 90 563 477 87 606 256 315 294 569 448 2632 334 2304 109 1078 228 Game ------ Seed HeartCoolingScanner Manual? 0 Play Time 07:41:51 Cumulative 135.0 hours Start 2020.01.02 @ 13:26:53 End 2020.01.03 @ 17:54:15 Sessions 7 Manual Loads 0 Difficulty Rogue Special Mode Winter2019/RPGLIKE Game No. 137 Rogue 137 Adventurer 0 Explorer 0 Win Type 0 Total 11 Types 10/0/0/1/0/0/0 Lore% 69 Gallery% 70 Achievement% 62 Wizard Run 0 Options --------- ASCII 0 Keyboard 0 Movement Numpad Keybinds 0 Fullscreen 2 Font 18/SmallcapsGlow Map View 76x50 Tactical HUD 1 Map Filters NONE Filters NONE Steam 1 RUN: de94adb4-da73-4b94-a726-a176182709ba